Cogmind - Beta 16 @@@ ROGUE MODE // 2025.11.09 @ 14:55:58 Player: C0-2MO Result: Escaped! Performance ------------- Evolutions (9) 4500 Regions Visited (35) 7000 Robots Destroyed (237) 1185 Value Destroyed (14803) 14803 Prototype IDs (57) 1140 Alien Tech Used (0) 0 Bonus (17070) 17070 TOTAL SCORE: 45698 Bonus ------- High Alert Combat Kills 1235 Follower Combat Kills 4179 Entered Garrisons 2400 Used RIF Installer 6500 Win 3000 Friendly Fire -244 Cogmind --------- Core Integrity 1458/1600 Matter 249/300 Energy 222/240 System Corruption 3% Temperature Cool (12) Movement Flying (23) Location To Epsilon Eridani Parts ------- > --- POWER (2) -------- Micro Antimatter Reactor (fused) Light Quantum Reactor > --- PROPULSION (6) --- Field Propulsion Drive Impulse Thruster Cooled Field Propulsion Drive Diametric Drive Electron Diverter Improved Q-thruster > --- UTILITY (15) ----- 2N-1CE's Frost Array Medium Storage Unit Large Storage Unit Advanced Quantum Shading Machine Experimental Optical Array Stasis Canceller Advanced Hacking Suite Advanced Hacking Suite Relay Coupler [C] (20) Relay Coupler [C] (39) Relay Coupler [Sentry] (35) Relay Coupler [Hunter] (23) Relay Coupler [Heavy] (16) Relay Coupler [Proto] (5) Relay Coupler [Proto] (16) > --- WEAPON (2) ------- Advanced Remote Datajack Nanosword > --- INVENTORY (15) --- Light Quantum Reactor Field Propulsion Drive Field Propulsion Drive Impulse Thruster Improved Propulsion Shielding Graphene Brace Relay Coupler [C] (32) Mini Smartbomb Launcher Advanced Datajack Advanced Datajack Advanced Remote Datajack Peak State ------------ > --- POWER ------------ Micro Antimatter Reactor Light Quantum Reactor > --- PROPULSION ------- Impulse Thruster Cooled Field Propulsion Drive Diametric Drive Electron Diverter Improved Q-thruster Improved Q-thruster > --- UTILITY ---------- 2N-1CE's Frost Array Medium Storage Unit Large Storage Unit Advanced Quantum Shading Machine Experimental Optical Array Advanced Hacking Suite Advanced Hacking Suite Relay Coupler [C] Relay Coupler [C] Relay Coupler [Sentry] Relay Coupler [Hunter] Relay Coupler [Heavy] Relay Coupler [Proto] Relay Coupler [Proto] Relay Coupler [Proto] > --- WEAPON ----------- Advanced Remote Datajack Nanosword > --- INVENTORY -------- Light Quantum Reactor Field Propulsion Drive Field Propulsion Drive Field Propulsion Drive Impulse Thruster Stasis Canceller Improved Propulsion Shielding Graphene Brace Relay Coupler [C] Mini Smartbomb Launcher Advanced Datajack Advanced Remote Datajack [Rating: 193] Favorites ----------- Power Light Nuclear Core Engine Backup Power I Power Core Light Nuclear Core Reactor Micro Antimatter Reactor Propulsion VTOL Module Treads Light Treads Flight Unit VTOL Module Utility Medium Storage Unit Device Experimental Heat Sink Storage Medium Storage Unit Processor Experimental Optical Array Hackware Relay Coupler [NC] Protection Improved Utility Shielding Weapon Improved Remote Datajack Energy Gun Medium Laser Ballistic Gun Precision Assault Rifle Launcher Mini Smartbomb Launcher Special Weapon Improved Remote Datajack Impact Weapon Powered Hammer Slashing Weapon Nanosword Piercing Weapon Plasma Lance Special Melee Weapon Advanced Datajack Build | -11 -10 -10 -10 -8 -8 -8 -8 -7 -7 -7 -7 -6 -6 -5 -5 -5 -5 -5 -5 -4 -4 -4 -4 -4 -4 -3 -3 -3 -3 -2 -2 -2 -2 -1 -1 ------- Run | Yrd Mat Min Sub Mat Gar Mat Gar Fac Was Fac Gar Fac Gar Fac Was Fac Gar Fac Gar Fac Was Fac Gar Fac Gar Res Gar Tes Gar Res Gar Res Gar Acc Com Slots Evolved 18 | . . . . 4 . . . 2 . . . 2 . 2 . . . . . 2 . . . . . 2 . . . 2 . . . 2 . Power 1 | . . . . . . . . . . . . . . 1 . . . . . . . . . . . . . . . . . . . . . Propulsion 4 | . . . . 2 . . . 1 . . . 1 . . . . . . . . . . . . . . . . . . . . . . . Utility 13 | . . . . 2 . . . 1 . . . 1 . 1 . . . . . 2 . . . . . 2 . . . 2 . . . 2 . Weapon . | . . . . . . . . . . . . . . . . . . . . . . . . . . . . . . . . . . . . Parts Attached 295 | 4 9 . 5 17 1 6 7 7 . 13 1 6 3 3 . 14 14 20 36 10 1 5 10 11 13 13 7 8 10 9 3 5 11 4 9 Power 40 | . . . . 3 . 1 1 . . 1 . 2 . 1 . 1 2 5 5 . . . 2 2 3 2 1 1 1 2 . 1 2 . 1 Engine 9 | . . . . 3 . 1 . . . . . 1 . . . . 2 . . . . . . . . 2 . . . . . . . . . Core 21 | . . . . . . . 1 . . 1 . 1 . 1 . 1 . 5 4 . . . 2 1 3 . . . . 1 . . . . . Reactor 10 | . . . . . . . . . . . . . . . . . . . 1 . . . . 1 . . 1 1 1 1 . 1 2 . 1 Propulsion 91 | 2 3 . 1 5 . 2 1 3 . 6 . 3 1 . . 6 7 6 17 2 . 2 2 4 5 3 . 2 . 5 . . . 1 2 Treads 2 | 2 . . . . . . . . . . . . . . . . . . . . . . . . . . . . . . . . . . . Leg . | . . . . . . . . . . . . . . . . . . . . . . . . . . . . . . . . . . . . Wheel . | . . . . . . . . . . . . . . . . . . . . . . . . . . . . . . . . . . . . Hover . | . . . . . . . . . . . . . . . . . . . . . . . . . . . . . . . . . . . . Flight 89 | . 3 . 1 5 . 2 1 3 . 6 . 3 1 . . 6 7 6 17 2 . 2 2 4 5 3 . 2 . 5 . . . 1 2 Utility 126 | . 4 . 2 6 . 2 2 3 . 3 1 1 2 2 . 6 5 5 11 5 1 3 6 5 3 6 5 4 9 2 3 3 8 3 5 Device 33 | . 1 . . . . . . . . 1 . . 1 1 . 3 1 1 3 3 1 1 2 3 . 3 . 2 . . . 1 3 1 1 Storage 4 | . . . . 1 . . . 1 . . . . . . . . . . . . . 1 . . . . . . . . . . . 1 . Processor 12 | . 1 . 1 2 . . . 1 . . . . . . . 1 . 2 3 . . . . . . 1 . . . . . . . . . Hackware 64 | . . . . . . 1 2 1 . 1 1 . 1 1 . 2 4 2 4 2 . 1 4 2 3 1 5 1 9 2 3 1 5 1 4 Protection 13 | . 2 . 1 3 . 1 . . . 1 . 1 . . . . . . 1 . . . . . . 1 . 1 . . . 1 . . . Artifact . | . . . . . . . . . . . . . . . . . . . . . . . . . . . . . . . . . . . . Weapon 38 | 2 2 . 2 3 1 1 3 1 . 3 . . . . . 1 . 4 3 3 . . . . 2 2 1 1 . . . 1 1 . 1 Energy Gun 4 | 2 1 . 1 . . . . . . . . . . . . . . . . . . . . . . . . . . . . . . . . Energy Cannon . | . . . . . . . . . . . . . . . . . . . . . . . . . . . . . . . . . . . . Ballistic Gun 12 | . . . 1 1 1 1 1 1 . 1 . . . . . . . . 2 1 . . . . 2 . . . . . . . . . . Ballistic Cannon . | . . . . . . . . . . . . . . . . . . . . . . . . . . . . . . . . . . . . Launcher 3 | . . . . 1 . . 1 . . . . . . . . . . . . . . . . . . . 1 . . . . . . . . Special Weapon 7 | . 1 . . . . . 1 . . 1 . . . . . 1 . 2 . . . . . . . . . . . . . . 1 . . Impact Weapon 4 | . . . . 1 . . . . . 1 . . . . . . . 1 . . . . . . . 1 . . . . . . . . . Slashing Weapon 4 | . . . . . . . . . . . . . . . . . . . 1 1 . . . . . 1 . 1 . . . . . . . Piercing Weapon 1 | . . . . . . . . . . . . . . . . . . . . 1 . . . . . . . . . . . . . . . Special Melee Weapon 3 | . . . . . . . . . . . . . . . . . . 1 . . . . . . . . . . . . . 1 . . 1 Unidentified Prototypes 27 | . . . . 3 . 1 . 1 . . . . . . . . . . 6 2 . 1 . . . 2 . 5 . 1 . . 3 1 1 Parts Lost 87 | . 1 . 4 3 . 1 5 1 . 2 . 4 1 . . 2 7 8 13 1 . 1 5 2 6 . . 2 2 8 . 2 3 2 1 Power 19 | . . . 1 1 . . 2 . . . . 1 . . . . 1 2 2 . . . 1 1 3 . . . . 2 . 1 . 1 . Propulsion 36 | . . . . 1 . . 2 1 . 2 . 3 . . . 2 4 3 9 . . 1 2 . 1 . . . 1 2 . 1 . . 1 Utility 26 | . 1 . 1 1 . 1 1 . . . . . 1 . . . 1 2 2 1 . . 2 1 1 . . 2 1 3 . . 3 1 . Weapon 6 | . . . 2 . . . . . . . . . . . . . 1 1 . . . . . . 1 . . . . 1 . . . . . Highest Loss Streak 12 | . 1 . 3 2 . 1 2 1 . 1 . 2 1 . . 1 4 6 12 1 . 1 5 1 4 . . 2 1 5 . 1 2 2 1 To Critical Strikes . | . . . . . . . . . . . . . . . . . . . . . . . . . . . . . . . . . . . . Average Backups 8 | . 4 5 4 5 8 8 7 9 10 9 9 8 9 8 10 9 9 9 9 9 10 9 9 8 9 9 9 9 9 9 9 9 10 10 12 Power . | . . . . . 1 1 . . 1 1 1 . 1 . 1 1 1 1 . . 1 1 . . 1 . . 1 1 . . . . . . Propulsion 2 | . 4 5 4 2 2 2 1 1 2 2 1 . . . . . 1 1 1 3 3 2 1 1 . . 1 1 1 2 4 2 2 2 3 Utility 3 | . . . . . . 1 1 2 3 2 3 3 4 3 5 5 5 4 4 3 3 3 3 3 4 6 6 6 6 4 5 6 6 6 5 Weapon 1 | . . . . 1 3 3 2 2 2 2 3 2 2 2 3 2 1 . 1 2 2 1 1 2 1 1 . 1 1 . . . 1 1 1 Tool/Special . | . . . . . . . . . . . . . . . . . . . . . . . . . . . . . . . . . . . . Unused Backups 26 | . . . . 1 1 . 1 1 . 2 1 . . . . 4 1 2 1 . . . . . . . 1 . 1 . . 1 2 1 5 Power 3 | . . . . . . . . . . . . . . . . 1 . 1 . . . . . . . . . . . . . . . . 1 Propulsion 3 | . . . . . . . . . . . . . . . . . . . . . . . . . . . . . . . . . . 1 2 Utility 14 | . . . . . . . 1 . . 1 1 . . . . 2 1 1 1 . . . . . . . 1 . 1 . . 1 2 . 1 Weapon 4 | . . . . 1 1 . . 1 . 1 . . . . . . . . . . . . . . . . . . . . . . . . . Tool/Special 2 | . . . . . . . . . . . . . . . . 1 . . . . . . . . . . . . . . . . . . 1 Average Slot Usage (%) 92 | . 90 88 53 92 90 97 98 94 92 99 99 86 95 98 100 91 89 92 92 90 90 93 90 89 89 93 99 97 96 92 92 97 97 96 98 Engine 2 | . 8 14 1 7 9 9 5 6 7 6 . 2 1 3 . . 3 1 . . . . . . . . . . . . . . . . . Core 4 | . . . . . . . 3 . . . 7 3 4 6 11 9 6 8 10 10 10 10 10 9 7 3 4 3 4 5 4 2 . . . Flight 30 | . 27 28 28 35 36 36 35 37 38 37 38 30 38 34 35 29 28 32 33 26 26 25 26 25 28 28 28 28 27 25 21 25 26 24 23 Device 6 | . 2 3 . . . . . . . 1 . . . 2 5 7 4 9 9 13 17 16 10 19 15 11 9 8 9 11 8 7 4 11 11 Storage 5 | . . . . 7 9 9 9 7 7 7 7 6 6 5 5 5 5 5 5 5 5 5 5 5 5 4 4 4 4 4 4 4 4 4 8 Processor 6 | . 13 14 14 21 9 9 9 7 7 7 7 6 6 5 5 2 . 3 5 8 5 5 5 5 5 7 4 4 4 4 4 4 4 4 4 Hackware 16 | . . . . . . 8 14 20 15 16 22 20 20 16 17 20 23 19 12 11 15 19 21 13 17 22 26 25 24 27 36 39 37 37 36 Protection 3 | . 10 . . 3 18 9 2 . . 4 . 4 5 8 5 1 4 . 2 2 . . . . . 1 4 4 4 2 . . 3 . . Energy Gun 1 | . 19 14 3 . . . . . . . . . . . . . . . . . . . . . . . . . . . . . . . . Ballistic Gun 2 | . . . 4 16 2 10 8 7 7 10 . 3 7 . . . . . 1 . . . . . 3 . . . . . . . . . . Special Weapon 3 | . 7 14 2 . . . 3 . . 1 7 . . 4 5 4 3 2 1 4 5 5 4 3 1 1 3 4 4 3 . . 2 4 3 Impact Weapon 2 | . . . . . 5 5 6 5 7 3 7 6 1 5 5 4 5 4 3 2 . . . . . . . . . . . . . . . Peak Build Rating 193 | 4 12 12 14 28 27 32 32 39 36 39 36 40 48 55 55 77 72 76 78 98 100 100 98 112 112 128 139 139 150 162 173 173 172 176 193 Average Rating 69 | 2 10 10 7 23 26 28 30 36 36 36 35 35 45 51 55 60 61 59 69 89 92 95 95 102 101 120 129 130 137 155 169 168 163 171 180 On Entrance 74 | . 4 12 10 8 27 27 28 31 36 36 35 36 38 44 55 55 77 40 76 67 91 100 96 98 112 98 128 132 132 148 151 173 162 169 167 Avg Prop Armor Cover (%) 6 | 30 29 . . 8 . . . . . . . 3 2 . . . 3 . . . . . . . . . . . . . . . . . . Naked Turns . | . . . . . . . . . . . . . . . . . . . . . . . . . . . . . . . . . . . . Heaviest Build 64 | 3 7 5 4 16 17 20 20 23 22 24 21 24 29 32 31 34 34 31 32 31 31 32 30 32 33 37 36 34 39 42 42 42 42 46 64 Greatest Support 72 | 3 8 8 8 18 17 20 20 26 26 26 25 27 32 32 32 38 38 32 32 36 36 36 36 37 37 37 37 41 41 47 46 47 72 72 72 Greatest Overweight (x) 4 | . . . . . . . . 1 . 1 . 1 . . . 1 1 4 1 . . 1 . . 1 . . . . . . . . . . Average Overweight (x) . | . . . . . . . . . . . . . . . . . . . . . . . . . . . . . . . . . . . . Largest Inventory Capacity 15 | 5 5 5 5 8 8 8 8 10 10 10 10 10 10 10 10 10 10 10 10 10 10 10 10 10 10 10 10 10 10 10 10 10 10 15 15 Average Capacity 9 | 5 5 5 5 7 8 8 8 9 10 10 10 10 10 10 10 10 10 10 10 10 10 10 10 10 10 10 10 10 10 10 10 10 10 10 15 Most Carried 14 | . 5 5 5 8 8 8 8 10 10 10 10 10 10 10 10 10 10 10 10 10 10 10 10 10 10 10 10 10 10 10 10 10 10 10 14 Average Carried 8 | . 4 4 4 6 7 8 7 9 10 9 9 8 9 8 10 9 9 9 9 9 10 9 9 9 9 9 9 9 9 9 9 9 9 9 12 Final Capacity 15 | 5 5 5 5 8 8 8 8 10 10 10 10 10 10 10 10 10 10 10 10 10 10 10 10 10 10 10 10 10 10 10 10 10 10 15 15 Final Carried 11 | . 5 5 5 8 8 8 8 10 10 9 10 10 10 10 10 10 8 8 10 10 10 10 7 10 10 10 10 10 10 8 10 10 10 10 11 Class Distribution -------------------- 38% | Sprinter 21% | Scavenger-Sprinter 12% | Bothacker-Sprinter 9% | Botlord-Sprinter 9% | Commander-Sprinter Dominant Class ---------------- Sprinter | -10/Materials Sprinter | -10/Mines Sprinter | -10/Subcaves Sprinter | -8/Materials Sprinter | -8/Garrison Sprinter | -8/Materials Sprinter | -8/Garrison Sprinter | -7/Factory Sprinter | -7/Waste Sprinter | -7/Factory Sprinter | -7/Garrison Sprinter | -6/Factory Sprinter | -6/Garrison Bothacker-Sprinter | -5/Factory Bothacker-Sprinter | -5/Waste Bothacker-Sprinter | -5/Factory Bothacker-Sprinter | -5/Garrison Scavenger-Sprinter | -5/Factory Scavenger-Sprinter | -5/Garrison Scavenger-Sprinter | -4/Factory Scavenger-Sprinter | -4/Waste Scavenger-Sprinter | -4/Factory Scavenger-Sprinter | -4/Garrison Scavenger-Sprinter | -4/Factory Bothacker-Sprinter | -4/Garrison Botlord-Scout | -3/Research Botlord-Sprinter | -3/Garrison Botlord-Sprinter | -3/Testing Commander-Sprinter | -3/Garrison Commander-Sprinter | -2/Research Commander-Sprinter | -2/Garrison Commander-Sprinter | -2/Research Botlord-Sprinter | -2/Garrison Botlord-Sprinter | -1/Access Botlord-Sprinter | -1/Command Resources | -11 -10 -10 -10 -8 -8 -8 -8 -7 -7 -7 -7 -6 -6 -5 -5 -5 -5 -5 -5 -4 -4 -4 -4 -4 -4 -3 -3 -3 -3 -2 -2 -2 -2 -1 -1 ----------- Run | Yrd Mat Min Sub Mat Gar Mat Gar Fac Was Fac Gar Fac Gar Fac Was Fac Gar Fac Gar Fac Was Fac Gar Fac Gar Res Gar Tes Gar Res Gar Res Gar Acc Com Matter Collected 9203 | 196 149 . 91 534 245 271 479 255 . 313 101 257 210 147 . 493 323 411 966 397 . 70 293 208 472 235 272 88 665 289 55 106 80 420 112 Remotely . | . . . . . . . . . . . . . . . . . . . . . . . . . . . . . . . . . . . . Salvage Created 10044 | . 160 . 63 462 437 364 551 423 . 255 45 289 216 229 . 852 217 345 738 349 . 88 251 281 417 412 252 215 502 564 132 328 69 441 97 Parts 490 | . 9 . 1 31 21 16 31 14 . 14 1 9 15 4 . 41 10 12 41 15 . 2 12 22 20 18 18 6 23 25 5 19 9 20 6 Haulers Intercepted 7 | . 1 . . . . . . 1 . . . . . . . 1 . 1 . 1 . . . . . . . . . . . . . 2 . Recyclers Shooed 3 | . . . . . . . . . . . . 1 . . . . . . . 1 . . . . . 1 . . . . . . . . . Parts Field Recycled . | . . . . . . . . . . . . . . . . . . . . . . . . . . . . . . . . . . . . Retrieved Matter . | . . . . . . . . . . . . . . . . . . . . . . . . . . . . . . . . . . . . Parts Self-Destructed 6 | . . . 6 . . . . . . . . . . . . . . . . . . . . . . . . . . . . . . . . Prevented . | . . . . . . . . . . . . . . . . . . . . . . . . . . . . . . . . . . . . Parts Restored . | . . . . . . . . . . . . . . . . . . . . . . . . . . . . . . . . . . . . Kills | -11 -10 -10 -10 -8 -8 -8 -8 -7 -7 -7 -7 -6 -6 -5 -5 -5 -5 -5 -5 -4 -4 -4 -4 -4 -4 -3 -3 -3 -3 -2 -2 -2 -2 -1 -1 ------- Run | Yrd Mat Min Sub Mat Gar Mat Gar Fac Was Fac Gar Fac Gar Fac Was Fac Gar Fac Gar Fac Was Fac Gar Fac Gar Res Gar Tes Gar Res Gar Res Gar Acc Com Combat Hostiles Destroyed 178 | . 6 . . 14 18 8 20 4 . 5 1 4 6 . . 8 3 4 26 2 . 1 7 4 10 2 6 . 6 6 2 3 1 . 1 Melee 37 | . . . . . 2 . . 1 . . 1 . . . . 3 . . 1 1 . 1 3 1 1 2 3 . 6 4 2 3 1 . 1 Guns 69 | . 6 . . 12 5 8 12 3 . 5 . 4 3 . . 4 1 . 2 1 . . . . 3 . . . . . . . . . . AOE 58 | . . . . 2 8 . 6 . . . . . 3 . . . . 2 19 . . . 4 3 6 . 3 . . 2 . . . . . Classes Destroyed 21 | . 3 . 2 2 2 3 1 . . . . . . . . 1 . . 3 . . . 1 . . . 1 . . . . . . 1 1 Builder 11 | . . . . . . . . . . . . . . . . 6 . . . 2 . . . 1 . 1 . . . . . . . 1 . Tunneler 1 | . . . . . . . . . . . . . . . . . . . . . . . . . . . . . . . . . . 1 . Hauler 7 | . 1 . . . . . . 1 . . . . . . . 1 . 1 . 1 . . . . . . . . . . . . . 2 . Recycler 14 | . . . . . . 1 . 1 . . . . . 2 . 2 . . . 1 . . . 1 . 2 . 1 . 1 . . . 2 . Operator 6 | . . . . . . 1 . . . . . . . . . . . . . . . . . 2 . . . . . . . 2 . . 1 Watcher 16 | . . . . . . 1 . 2 . 4 . 1 . . . 4 1 3 . . . . . . . . . . . . . . . . . Swarmer 74 | . 5 . . 6 8 3 7 . . 5 . . 3 . . 4 . 3 11 1 . . 4 4 5 . 4 . 1 . . . . . . Cutter 3 | . . . . . . . . . . . . . . . . . . . 3 . . . . . . . . . . . . . . . . Grunt 48 | . 1 . . 4 4 2 9 2 . . 1 3 . . . 3 1 2 6 1 . . . . 2 . . . 2 1 2 2 . . . Brawler 3 | . . . . . 1 . 1 . . . . . 1 . . . . . . . . . . . . . . . . . . . . . . Duelist 7 | . . . . . 1 . 1 . . . . 1 1 . . . . . 2 . . . . . . . . . 1 . . . . . . Protector 1 | . . . . . . . . . . . . . . . . . . . . . . . . . . . 1 . . . . . . . . Sentry 20 | . . . . 3 4 3 . 2 . . . . . . . . 1 . . . . 1 1 . . 2 1 . 1 1 . . . . . Specialist 1 | . . . . . . . . . . . . . . . . . . . . . . . . . . . . . 1 . . . . . . Hunter 10 | . . . . 1 . . . . . . . . . . . . 1 . . . . . . . 3 . . . 1 3 . 1 . . . Programmer 11 | . . . . . . . 2 . . . . . 1 . . 1 . . 3 . . . 1 . 1 . . . . 1 . . 1 . . Behemoth 1 | . . . . . . . . . . . . . . . . . . . . . . . 1 . . . . . . . . . . . . Executioner 1 | . . . . . . . . . . . . . . . . . . . 1 . . . . . . . . . . . . . . . . Alpha 7 1 | . . . . . . . . . . . . . . . . . . . . . . . . . . . . . . . . . . . 1 Artisan 1 | . . . 1 . . . . . . . . . . . . . . . . . . . . . . . . . . . . . . . . Cobbler 1 | . . . 1 . . . . . . . . . . . . . . . . . . . . . . . . . . . . . . . . Infiltrator 1 | . . . . . . . . . . . . . . . . . . . 1 . . . . . . . . . . . . . . . . Best Kill Streak 15 | . 3 . . 3 8 6 6 3 . 2 1 3 3 1 . 7 1 3 15 3 . 1 4 6 6 2 4 1 2 3 2 2 1 2 1 Combat Bots Only 15 | . 3 . . 3 8 5 6 2 . 2 1 2 3 . . 4 1 3 15 1 . 1 4 4 6 2 4 . 2 3 2 1 1 . 1 Max Kills in Single Turn 3 | . 1 . 1 2 2 1 2 1 . 1 1 1 2 1 . 1 1 3 3 1 . 1 3 2 3 1 2 1 1 2 1 1 1 1 1 Gunslinging . | . . . . . . . . . . . . . . . . . . . . . . . . . . . . . . . . . . . . Exploded 3 | . . . . 2 2 . 2 . . . . . 2 . . . . 2 3 . . . 3 2 3 . 2 . . 2 . . . . . Melee 1 | . . . . . 1 . . 1 . . 1 . . . . 1 . . 1 1 . 1 1 1 1 1 1 . 1 1 1 1 1 . 1 Uniques/NPCs Destroyed . | . . . . . . . . . . . . . . . . . . . . . . . . . . . . . . . . . . . . Combat | -11 -10 -10 -10 -8 -8 -8 -8 -7 -7 -7 -7 -6 -6 -5 -5 -5 -5 -5 -5 -4 -4 -4 -4 -4 -4 -3 -3 -3 -3 -2 -2 -2 -2 -1 -1 -------- Run | Yrd Mat Min Sub Mat Gar Mat Gar Fac Was Fac Gar Fac Gar Fac Was Fac Gar Fac Gar Fac Was Fac Gar Fac Gar Res Gar Tes Gar Res Gar Res Gar Acc Com Hostile Shots Fired 1118 | . 68 1 20 86 34 33 50 73 . 41 33 31 9 3 . 57 80 47 83 27 . 10 58 16 128 . 14 4 13 46 6 6 19 10 12 Missed 488 | . 30 1 9 31 16 13 18 44 . 19 25 16 3 1 . 26 35 20 35 12 . 5 27 6 49 . 2 4 5 17 3 2 6 5 3 Hits 630 | . 38 . 11 55 18 20 32 29 . 22 8 15 6 2 . 31 45 27 48 15 . 5 31 10 79 . 12 . 8 29 3 4 13 5 9 Melee 2 | . . . . . . . 1 . . . . . . . . . . . 1 . . . . . . . . . . . . . . . . Projectile 628 | . 38 . 11 55 18 20 31 29 . 22 8 15 6 2 . 31 45 27 47 15 . 5 31 10 79 . 12 . 8 29 3 4 13 5 9 AOE 8 | . . . . . . . . . . . . . . . . . . 1 . 2 . . . . . . 1 . . 4 . . . . . Critical Strikes 27 | . 1 . . 1 1 1 3 . . . . . . . . 3 3 1 2 3 . . 3 . 3 . . . . . . . 1 . 1 Actively Blocked 4 | . . . . . . . . . . . . . . . . 1 . . . . . . . . 3 . . . . . . . . . . Part Disruptions 1 | . . . . . . . . . . . . . . . . . 1 . . . . . . . . . . . . . . . . . . Damage Taken 11076 | . 385 . 214 732 206 293 552 239 . 345 60 292 43 56 . 595 750 504 1021 345 . 107 512 188 1231 . 257 . 222 993 75 168 243 192 256 Core 2697 | . 104 . 86 217 38 48 114 89 . 80 6 58 . . . 132 211 111 181 81 . 16 84 68 294 . 75 . 91 274 . 41 56 52 90 Absorbed by Shields 766 | . . . . . 13 . . . . . . . 45 . . . 257 . 20 . . . 11 . 352 . . . . . . . 68 . . Redirected to Shielding 403 | . . . . 108 . . . . . 16 . 40 . . . 13 42 . 12 4 . . . . . . 33 . 37 30 . . 68 . . Regen/Repaired (Parts) 990 | . 41 . . 92 . . . 34 . 48 . 22 . 18 . 176 . 119 . 134 . 85 . . . . . . . . . 119 . . 102 Core Remaining (%) 65 | 100 . . 24 . . . 24 . . . 75 . 93 . . . . . 36 . . . . . 52 . . . 87 . . . 74 . 91 Volleys Fired 667 | . 37 . 25 48 28 24 38 22 . 16 . 49 18 2 . 34 23 16 59 32 . 1 8 4 39 2 21 1 60 19 2 . 20 14 5 Largest 2 | . 2 . 1 2 1 2 2 1 . 2 . 1 2 1 . 1 1 1 2 1 . 1 1 1 2 1 1 1 1 1 1 . 1 1 1 Hottest 100 | . 100 . 100 55 30 53 56 28 . 53 . 28 53 5 . 28 28 30 53 23 . 7 30 30 65 7 80 7 7 80 80 . 10 10 10 Shots Fired 802 | . 52 . 25 95 28 38 57 22 . 32 . 49 23 2 . 34 23 16 67 32 . 1 8 4 50 2 21 1 60 19 2 . 20 14 5 Gun 501 | . 51 . 22 92 17 38 48 20 . 32 . 48 20 . . 23 10 . 28 14 . . . . 38 . . . . . . . . . . Cannon . | . . . . . . . . . . . . . . . . . . . . . . . . . . . . . . . . . . . . Launcher 59 | . . . . 3 11 . 5 . . . . . 3 . . . . 1 20 . . . 3 2 5 . 2 . . 2 2 . . . . Special 242 | . 1 . 3 . . . 4 2 . . . 1 . 2 . 11 13 15 19 18 . 1 5 2 7 2 19 1 60 17 . . 20 14 5 Kinetic 446 | . . . 18 92 17 38 48 20 . 32 . 48 20 . . 23 10 . 28 14 . . . . 38 . . . . . . . . . . Thermal 59 | . 52 . 7 . . . . . . . . . . . . . . . . . . . . . . . . . . . . . . . . Explosive 59 | . . . . 3 11 . 5 . . . . . 3 . . . . 1 20 . . . 3 2 5 . 2 . . 2 2 . . . . Electromagnetic . | . . . . . . . . . . . . . . . . . . . . . . . . . . . . . . . . . . . . Robot Hit Streak 29 | . 7 . 7 14 11 13 9 11 . 13 . 8 11 7 . 8 16 5 8 12 . . 7 8 9 4 7 7 29 11 . . 9 8 4 Robot Miss Streak 12 | . 4 . 1 3 7 6 12 3 . 3 . 3 1 . . 2 2 5 5 2 . 1 . 2 3 . 3 . 3 2 . . 2 3 1 Penetration Max 1 | . . . . . . . . . . . . . . . . . . . . . . . . . 1 . . . . . . . . . . Secondary Targets 2 | . 1 . . . . . 1 . . . . . . . . . . . . . . . . . . . . . . . . . . . . Max Gunslinging Chain 1 | . 1 . . . . . 1 . . . . . . . . . . . . . . . . . . . . . . . . . . . . Shots Hit Robots 789 | . 28 . 19 66 27 35 48 24 . 26 1 38 19 5 . 48 31 19 46 34 . 1 15 9 35 13 28 8 60 30 4 18 20 24 10 Core Hits 413 | . 10 . 5 28 40 31 55 8 . 10 . 15 12 1 . 13 7 6 66 7 . 1 9 9 29 4 7 3 7 12 4 6 1 5 2 Critical Kills 4 | . . . . . . . . . . 1 . . . . . 1 1 1 . . . . . . . . . . . . . . . . . Critical Parts Destroyed 15 | . . . . 1 . . 1 . . 1 . 2 . 1 . 2 . 1 3 3 . . . . . . . . . . . . . . . Critical Strikes 33 | . 1 . . 1 . . 1 . . 2 . 2 . 1 . 3 2 2 4 3 . . . 1 . 2 2 1 . 2 . 3 . . . Burn 1 | . 1 . . . . . . . . . . . . . . . . . . . . . . . . . . . . . . . . . . Destroy 3 | . . . . 1 . . . . . 1 . 1 . . . . . . . . . . . . . . . . . . . . . . . Smash 18 | . . . . . . . 1 . . 1 . 1 . 1 . 3 2 2 4 3 . . . . . . . . . . . . . . . Sever 9 | . . . . . . . . . . . . . . . . . . . . . . . . . . 1 2 1 . 2 . 3 . . . Impale 2 | . . . . . . . . . . . . . . . . . . . . . . . . 1 . 1 . . . . . . . . . Melee Attacks 530 | . . . . 1 21 8 32 20 . 19 2 8 2 7 . 49 19 43 12 20 . 20 12 17 5 30 21 14 42 29 6 22 18 19 12 Impact 255 | . . . . 1 21 8 32 20 . 19 2 8 2 7 . 49 19 43 12 12 . . . . . . . . . . . . . . . Slashing 193 | . . . . . . . . . . . . . . . . . . . . 3 . . . . . 13 21 14 42 29 6 22 15 19 9 Piercing 76 | . . . . . . . . . . . . . . . . . . . . 5 . 20 12 17 5 17 . . . . . . . . . Sneak Attacks 82 | . . . . . 3 2 1 2 . . 1 . . 2 . 12 4 2 2 3 . 1 1 2 . 9 1 1 6 7 1 6 1 7 5 Combat Hostiles 6 | . . . . . 3 . . . . . . . . . . 1 1 . . . . . . . . . . . . . . 1 . . . Follow-up Attacks . | . . . . . . . . . . . . . . . . . . . . . . . . . . . . . . . . . . . . Damage Inflicted 28383 | . 348 . 275 1159 1357 776 1250 796 . 625 151 743 623 287 . 2096 827 818 2501 595 . 114 820 689 1801 1158 1196 640 923 1659 467 1525 274 1320 570 Guns 6557 | . 348 . 275 962 344 560 672 311 . 454 . 701 339 . . 243 197 . 274 179 . . . . 698 . . . . . . . . . . Cannons . | . . . . . . . . . . . . . . . . . . . . . . . . . . . . . . . . . . . . Explosions 5749 | . . . . 197 526 . 400 . . . . . 284 . . . . 159 1782 . . . 362 210 968 . 291 . . 391 179 . . . . Melee 16077 | . . . . . 487 216 178 485 . 171 151 42 . 287 . 1853 630 659 445 416 . 114 458 479 135 1158 905 640 923 1268 288 1525 274 1320 570 Ramming . | . . . . . . . . . . . . . . . . . . . . . . . . . . . . . . . . . . . . Kinetic 6173 | . . . 239 962 344 560 672 311 . 454 . 701 339 . . 243 197 . 274 179 . . . . 698 . . . . . . . . . . Thermal 384 | . 348 . 36 . . . . . . . . . . . . . . . . . . . . . . . . . . . . . . . . Explosive 5749 | . . . . 197 526 . 400 . . . . . 284 . . . . 159 1782 . . . 362 210 968 . 291 . . 391 179 . . . . Electromagnetic . | . . . . . . . . . . . . . . . . . . . . . . . . . . . . . . . . . . . . Impact 5849 | . . . . . 487 216 178 485 . 171 151 42 . 287 . 1853 630 659 445 245 . . . . . . . . . . . . . . . Slashing 8442 | . . . . . . . . . . . . . . . . . . . . 40 . . . . . 689 905 640 923 1268 288 1525 274 1320 570 Piercing 1786 | . . . . . . . . . . . . . . . . . . . . 131 . 114 458 479 135 469 . . . . . . . . . Highest Corruption 8 | . . . . . . . 1 . 7 7 2 . 2 . 8 8 . . 6 . 5 5 5 5 2 . . . . 2 2 3 . 3 3 Average Corruption 4 | . . . . . . . 1 . 7 4 2 . 1 . 8 7 . . 4 . 5 5 5 4 1 . . . . 1 2 2 . 3 3 Corruption Purged 27 | . . . . . . . . . . 5 . . . . . 8 . . 6 . . . . 5 . . . . . . . 3 . . . Corruption Blocked . | . . . . . . . . . . . . . . . . . . . . . . . . . . . . . . . . . . . . Effects 85 | . . . . . . . 4 . 1 14 3 . 1 . . 23 . . 5 . 1 7 5 6 . . . . . 6 3 . . 5 1 Message Errors 20 | . . . . . . . 2 . 1 . 1 . . . . 8 . . 2 . . . 1 2 . . . . . 2 . . . 1 . Matter Fused 25 | . . . . . . . . . . 4 2 . 1 . . 4 . . 3 . 1 4 1 2 . . . . . 1 1 . . 1 . Heat Flow Errors 10 | . . . . . . . 1 . . 2 . . . . . 3 . . . . . . 1 2 . . . . . . . . . 1 . Energy Discharges 11 | . . . . . . . . . . 2 . . . . . 4 . . . . . 1 1 . . . . . . 1 2 . . . . Parts Rejected 1 | . . . . . . . . . . . . . . . . . . . . . . . . . . . . . . 1 . . . . . Parts Fused 2 | . . . . . . . . . . . . . . . . . . . . . . 1 . . . . . . . . . . . 1 . Data Loss (minor) 9 | . . . . . . . . . . 3 . . . . . 2 . . . . . 1 1 . . . . . . 1 . . . . 1 Data Loss (major) 2 | . . . . . . . . . . . . . . . . 2 . . . . . . . . . . . . . . . . . . . Misfires 1 | . . . . . . . 1 . . . . . . . . . . . . . . . . . . . . . . . . . . . . Alerts 4 | . . . . . . . . . . 3 . . . . . . . . . . . . . . . . . . . . . . . 1 . Overload Shots . | . . . . . . . . . . . . . . . . . . . . . . . . . . . . . . . . . . . . Overflow Damage 3535 | . . . . . 217 176 103 185 . 114 61 42 . 34 . 666 127 234 225 245 . . . 7 . 308 75 75 148 68 . 76 . 180 169 Projectiles . | . . . . . . . . . . . . . . . . . . . . . . . . . . . . . . . . . . . . Explosions 100 | . . . . . 9 . . . . . . . . . . . . 6 43 . . . . . . . 42 . . . . . . . . Melee 3435 | . . . . . 208 176 103 185 . 114 61 42 . 34 . 666 127 228 182 245 . . . 7 . 308 33 75 148 68 . 76 . 180 169 Knockbacks 25 | . . . . . 2 1 1 2 . 1 . . . 2 . 9 2 3 2 . . . . . . . . . . . . . . . . Impact 24 | . . . . . 1 1 1 2 . 1 . . . 2 . 9 2 3 2 . . . . . . . . . . . . . . . . Kinetic . | . . . . . . . . . . . . . . . . . . . . . . . . . . . . . . . . . . . . Secondary 1 | . . . . . 1 . . . . . . . . . . . . . . . . . . . . . . . . . . . . . . Self-Inflicted Damage 180 | . . . . . . . 47 . . . . . 2 . . . . 14 96 . . . . . 21 . . . . . . . . . . Shots 8 | . . . . . . . 2 . . . . . 1 . . . . 1 3 . . . . . 1 . . . . . . . . . . Rammed . | . . . . . . . . . . . . . . . . . . . . . . . . . . . . . . . . . . . . Targets Rammed . | . . . . . . . . . . . . . . . . . . . . . . . . . . . . . . . . . . . . Kicked . | . . . . . . . . . . . . . . . . . . . . . . . . . . . . . . . . . . . . Crushed . | . . . . . . . . . . . . . . . . . . . . . . . . . . . . . . . . . . . . Highest Temperature 316 | . 316 . . 26 52 89 93 14 2 278 15 7 76 260 . 217 2 156 2 15 . . 123 276 36 . 20 . . . . . . 64 . Average Temperature 37 | . 114 . . 6 9 23 14 2 2 25 4 4 27 96 . 28 2 83 2 15 . . 63 124 18 . 15 . . . . . . 64 . Received Heat Transfer 1957 | . 347 . 48 153 81 126 162 48 . 15 18 114 . 12 . 45 221 63 63 67 . 30 67 18 110 . 42 . 9 18 18 18 35 9 . Effects 8 | . 5 . . . . . . . . 3 . . . . . . . . . . . . . . . . . . . . . . . . . Energy Bleed 2 | . 2 . . . . . . . . . . . . . . . . . . . . . . . . . . . . . . . . . . Interference 6 | . 3 . . . . . . . . 3 . . . . . . . . . . . . . . . . . . . . . . . . . Siege Activations . | . . . . . . . . . . . . . . . . . . . . . . . . . . . . . . . . . . . . Martial Activations . | . . . . . . . . . . . . . . . . . . . . . . . . . . . . . . . . . . . . Shielding Activations . | . . . . . . . . . . . . . . . . . . . . . . . . . . . . . . . . . . . . Robots Disrupted . | . . . . . . . . . . . . . . . . . . . . . . . . . . . . . . . . . . . . Combat Hostiles . | . . . . . . . . . . . . . . . . . . . . . . . . . . . . . . . . . . . . Robots Corrupted 27 | . . . . . 3 1 2 2 . 1 . . . 1 . 6 2 4 4 1 . . . . . . . . . . . . . . . Combat Hostiles 14 | . . . . . 3 . 2 . . . . . . . . 1 2 2 4 . . . . . . . . . . . . . . . . Parts Fried 37 | . . . . . 1 1 1 5 . 3 . 1 . 3 . 9 3 7 . 2 . . . . . . . . . 1 . . . . . Impact Corruptions 73 | . . . . . 6 7 2 5 . 3 1 1 . 1 . 23 3 6 9 6 . . . . . . . . . . . . . . . Robots Melted . | . . . . . . . . . . . . . . . . . . . . . . . . . . . . . . . . . . . . Combat Hostiles . | . . . . . . . . . . . . . . . . . . . . . . . . . . . . . . . . . . . . Parts Melted 3 | . 3 . . . . . . . . . . . . . . . . . . . . . . . . . . . . . . . . . . Heat Transferred 1126 | . 1015 . 111 . . . . . . . . . . . . . . . . . . . . . . . . . . . . . . . . Parts Sabotaged . | . . . . . . . . . . . . . . . . . . . . . . . . . . . . . . . . . . . . Parts Stolen . | . . . . . . . . . . . . . . . . . . . . . . . . . . . . . . . . . . . . Parts Stripped . | . . . . . . . . . . . . . . . . . . . . . . . . . . . . . . . . . . . . Power Chain Reactions 2 | . . . . . . . . . . . . . . . . . . . . . . 1 . . . . . . . . . . . 1 . Alert | -11 -10 -10 -10 -8 -8 -8 -8 -7 -7 -7 -7 -6 -6 -5 -5 -5 -5 -5 -5 -4 -4 -4 -4 -4 -4 -3 -3 -3 -3 -2 -2 -2 -2 -1 -1 ------- Run | Yrd Mat Min Sub Mat Gar Mat Gar Fac Was Fac Gar Fac Gar Fac Was Fac Gar Fac Gar Fac Was Fac Gar Fac Gar Res Gar Tes Gar Res Gar Res Gar Acc Com Maximum Alert Level 4 | . 1 . . 1 3 3 4 3 1 1 2 1 2 1 . 2 3 2 3 3 1 1 2 1 2 1 2 1 2 2 2 1 1 . . Low Security (%) 20 | 100 84 100 . 44 . . . . . 9 . . 6 . 100 43 . 14 5 . . . . . . . 10 64 13 . . . 39 100 100 Level 1 41 | . 15 . . 55 23 . . . 100 90 52 100 63 100 . 37 20 74 22 . 100 100 77 100 43 100 63 36 28 23 . 100 60 . . Level 2 25 | . . . . . 52 69 25 68 . . 47 . 29 . . 18 75 11 15 28 . . 22 . 56 . 26 . 57 76 100 . . . . Level 3 11 | . . . . . 23 30 52 31 . . . . . . . . 4 . 56 71 . . . . . . . . . . . . . . . Level 4 1 | . . . . . . . 22 . . . . . . . . . . . . . . . . . . . . . . . . . . . . Level 5 . | . . . . . . . . . . . . . . . . . . . . . . . . . . . . . . . . . . . . High Security . | . . . . . . . . . . . . . . . . . . . . . . . . . . . . . . . . . . . . Max Security . | . . . . . . . . . . . . . . . . . . . . . . . . . . . . . . . . . . . . Peak Influence 1322 | . 251 30 . 370 946 763 1322 717 242 388 604 356 592 397 132 490 745 434 1094 1098 346 387 449 354 441 265 416 243 683 686 542 388 267 88 24 Initial 693 | . . . . . 228 460 434 693 242 162 200 317 158 310 132 92 313 396 81 574 346 242 275 221 233 236 186 234 83 384 458 304 201 79 4 Average 391 | . 112 4 . 190 523 646 864 685 241 290 397 298 349 338 132 231 521 330 671 845 346 272 338 273 373 241 317 176 466 469 508 337 194 33 9 Influence Increases 13839 | . 364 60 120 591 738 481 978 260 . 498 404 286 444 159 . 972 634 402 1283 850 . 311 278 283 348 143 370 47 780 979 124 265 182 113 92 Destroy 0b10 Robot/C 4508 | . 120 . . 280 380 160 500 80 . 100 20 80 120 . . 160 195 105 540 300 . 15 105 60 180 24 132 . 288 372 36 108 36 . 12 Destroy 0b10 Robot/NC 278 | . 5 . . . . 15 . 20 . 20 . 5 . 10 . 65 4 16 . 40 . . . 12 . 9 3 6 . 21 . 6 . 18 3 Destroy Leader 618 | . 22 . . 70 30 52 40 26 . 8 . 12 20 . . 20 8 24 40 58 . . 16 12 12 6 18 . 12 78 . 24 6 4 . Allied During Kill 1544 | . . . . . 11 . 10 . . . 1 . . . . 1 57 10 216 319 . . 7 5 35 1 72 6 269 386 34 87 14 . 3 Trap Triggered on 0b10 10 | . . . . 10 . . . . . . . . . . . . . . . . . . . . . . . . . . . . . . . Successful Hack 685 | . 35 . . 52 7 23 30 64 . 36 18 21 . 21 . 88 . 64 11 9 . 39 . 23 6 22 12 . . 36 . 34 . 11 23 Select Force Hacks 414 | . 60 . . . . . . 30 . 50 . . . 60 . 90 . 23 . . . 53 . 18 . . . . . . . . . 30 . Disable Machine 276 | . . . . . . 15 . . . . . 15 . . . . . 24 12 60 . 12 12 63 . 9 . 27 . . . . 27 . . Anti-Garrison Action 1500 | . . . . . 200 . 250 . . . 50 . 200 . . . 114 . 228 . . . 38 . 60 . 90 . 150 . 30 . 90 . . Destroy Structure 877 | . 2 . . 14 50 6 103 10 . 14 . 3 29 8 . 38 4 64 116 52 . 36 16 54 37 36 34 8 61 32 24 6 . 14 6 Partial Spotted 972 | . 30 . . 15 . 150 15 . . 45 150 60 60 15 . 105 48 36 . 12 . 24 36 18 9 36 9 . . 45 . . . 18 36 Lose Combat Pursuer 2157 | . 90 60 120 150 60 60 30 30 . 225 165 90 15 45 . 405 204 36 120 . . 132 48 18 9 . . . . 9 . . 9 18 9 Influence Decreases 13839 | . 364 40 140 240 143 758 325 889 461 444 86 663 79 372 247 656 325 1043 305 954 644 264 248 372 261 315 203 352 208 1051 193 538 318 239 99 Entered New Map 6509 | . . . 11 . 123 486 235 629 451 70 86 287 69 282 247 40 135 361 35 520 644 104 118 202 101 185 63 182 28 299 153 238 68 54 3 Time Decay 3778 | . 354 40 129 210 . 262 . 230 10 254 . 206 . 90 . 416 . 362 . 254 . 150 . 150 . 130 . 70 . 222 . 100 . 85 54 Search Patrol Dispatched 300 | . . . . . . . . . . 100 . 100 . . . 100 . . . . . . . . . . . . . . . . . . . Lost Part 800 | . 10 . . 30 . 10 50 10 . 20 . 40 10 . . 20 70 80 130 10 . 10 50 20 60 . . 20 20 80 . 20 30 . . Lost Ally 2302 | . . . . . 20 . 40 20 . . . 30 . . . 80 120 90 140 170 . . 80 . 100 . 140 80 160 450 40 180 220 100 42 Purge Threat 150 | . . . . . . . . . . . . . . . . . . 150 . . . . . . . . . . . . . . . . . Squads Dispatched 87 | . 5 . . 2 . 4 . 3 . 6 . 3 . 4 . 14 . 6 . 4 . 11 . 3 . 2 . 4 . 6 . 3 . 4 3 Investigation 53 | . 4 . . 2 . 3 . 2 . 5 . 1 . 3 . 10 . 4 . . . 8 . 3 . 1 . 2 . . . 2 . 1 2 Extermination 20 | . . . . . . . . 1 . 1 . 1 . 1 . 4 . 2 . 2 . 1 . . . 1 . 1 . 2 . 1 . 1 1 Reinforcement 12 | . 1 . . . . 1 . . . . . 1 . . . . . . . 1 . 2 . . . . . 1 . 3 . . . 2 . Assault 1 | . . . . . . . . . . . . . . . . . . . . 1 . . . . . . . . . . . . . . . Garrison 1 | . . . . . . . . . . . . . . . . . . . . . . . . . . . . . . 1 . . . . . Intercept . | . . . . . . . . . . . . . . . . . . . . . . . . . . . . . . . . . . . . Searches Triggered 3 | . . . . . . . . . . 1 . 1 . . . 1 . . . . . . . . . . . . . . . . . . . Unchained Authorized 2 | . . . . . . . . . . . . . . . . . . . . 1 . 1 . . . . . . . . . . . . . Construction Impeded . | . . . . . . . . . . . . . . . . . . . . . . . . . . . . . . . . . . . . Haulers Reinforced 1 | . . . . . . . . . . . . . . . . . . . . . . . . . . . . . . 1 . . . . . Active Scanning Responses . | . . . . . . . . . . . . . . . . . . . . . . . . . . . . . . . . . . . . Cargo Convoy Interrupts 1 | . . . . . . . . . . . . . . . . . . 1 . . . . . . . . . . . . . . . . . Alert ID Control Effect 9 | . . . . . . . . . . . . . . . . . . . . . . . . . . . . . . . . . . 7 2 Stealth | -11 -10 -10 -10 -8 -8 -8 -8 -7 -7 -7 -7 -6 -6 -5 -5 -5 -5 -5 -5 -4 -4 -4 -4 -4 -4 -3 -3 -3 -3 -2 -2 -2 -2 -1 -1 --------- Run | Yrd Mat Min Sub Mat Gar Mat Gar Fac Was Fac Gar Fac Gar Fac Was Fac Gar Fac Gar Fac Was Fac Gar Fac Gar Res Gar Tes Gar Res Gar Res Gar Acc Com Distress Signals 19 | . . . . 4 . 2 . 1 . 1 . . . . . . . 3 . 1 . . . . . . . . . 3 . 3 . 1 . Communications Jammed 464 | . . . . . . . . . . 3 . 21 . 4 . 2 . 3 . 213 . 4 . 5 . . . 3 . 114 . . . 92 . Distress Signals 462 | . . . . . . . . . . 3 . 21 . 4 . 2 . 3 . 213 . 4 . 4 . . . 3 . 114 . . . 91 . Times Spotted 649 | . 21 4 15 36 18 22 24 11 6 30 9 15 8 4 5 46 41 22 48 30 5 20 16 9 33 2 15 3 26 39 3 13 13 22 15 Peak Tracking Total 15 | . 8 2 10 8 9 8 6 3 6 5 7 5 3 3 5 7 14 4 8 8 5 9 9 6 15 1 3 3 3 5 1 6 4 7 9 Tactical Retreats 86 | . 3 2 5 4 2 3 2 2 . 6 5 4 1 1 . 16 8 2 6 . . 3 3 2 1 . . . . 1 . . 1 2 1 Traps | -11 -10 -10 -10 -8 -8 -8 -8 -7 -7 -7 -7 -6 -6 -5 -5 -5 -5 -5 -5 -4 -4 -4 -4 -4 -4 -3 -3 -3 -3 -2 -2 -2 -2 -1 -1 ------- Run | Yrd Mat Min Sub Mat Gar Mat Gar Fac Was Fac Gar Fac Gar Fac Was Fac Gar Fac Gar Fac Was Fac Gar Fac Gar Res Gar Tes Gar Res Gar Res Gar Acc Com Traps Triggered 65 | . 2 . . . 1 1 4 3 . 4 . . 8 1 . 6 5 1 4 1 . 1 2 . 3 . . . 5 3 1 . 3 . 6 Indirectly . | . . . . . . . . . . . . . . . . . . . . . . . . . . . . . . . . . . . . Trap Hack Attempts . | . . . . . . . . . . . . . . . . . . . . . . . . . . . . . . . . . . . . Triggered . | . . . . . . . . . . . . . . . . . . . . . . . . . . . . . . . . . . . . Disarmed . | . . . . . . . . . . . . . . . . . . . . . . . . . . . . . . . . . . . . Reprogrammed . | . . . . . . . . . . . . . . . . . . . . . . . . . . . . . . . . . . . . Reused 1 | . . . . 1 . . . . . . . . . . . . . . . . . . . . . . . . . . . . . . . Traps Extracted . | . . . . . . . . . . . . . . . . . . . . . . . . . . . . . . . . . . . . Installed 1 | . . . . 1 . . . . . . . . . . . . . . . . . . . . . . . . . . . . . . . Triggered 1 | . . . . 1 . . . . . . . . . . . . . . . . . . . . . . . . . . . . . . . Most Traps Carried 1 | . . . 1 1 . . . . . . . . . . . . . . . . . . . . . . . . . . . . . . . Machines | -11 -10 -10 -10 -8 -8 -8 -8 -7 -7 -7 -7 -6 -6 -5 -5 -5 -5 -5 -5 -4 -4 -4 -4 -4 -4 -3 -3 -3 -3 -2 -2 -2 -2 -1 -1 ---------- Run | Yrd Mat Min Sub Mat Gar Mat Gar Fac Was Fac Gar Fac Gar Fac Was Fac Gar Fac Gar Fac Was Fac Gar Fac Gar Res Gar Tes Gar Res Gar Res Gar Acc Com Machines Disabled 57 | . . . . . 3 1 4 . . . 1 1 2 . . . 3 2 6 5 . 1 2 7 2 1 3 3 3 . 1 . 5 . 1 Max in Single Turn 1 | . . . . . 1 1 1 . . . 1 1 1 . . . 1 1 1 1 . 1 1 . 1 1 1 1 1 . 1 . 1 . 1 Garrison Access 4 | . . . . . . . . 1 . 1 . 1 . . . . . . . . . . . . . . . . . . . . . 1 . Garrison Relay 31 | . . . . . 3 . 4 . . . 1 . 2 . . . 3 . 5 . . . 1 . 2 . 3 . 4 . 1 . 2 . . Phase Generator 1 | . . . . . . . . . . . 1 . . . . . . . . . . . . . . . . . . . . . . . . Machines Repaired . | . . . . . . . . . . . . . . . . . . . . . . . . . . . . . . . . . . . . Machines Dismantled . | . . . . . . . . . . . . . . . . . . . . . . . . . . . . . . . . . . . . Machines Sabotaged . | . . . . . . . . . . . . . . . . . . . . . . . . . . . . . . . . . . . . Overloaded Fab Kills 4 | . . . . . . . . . . . . . . . . . . . . . . 4 . . . . . . . . . . . . . Hacking | -11 -10 -10 -10 -8 -8 -8 -8 -7 -7 -7 -7 -6 -6 -5 -5 -5 -5 -5 -5 -4 -4 -4 -4 -4 -4 -3 -3 -3 -3 -2 -2 -2 -2 -1 -1 --------- Run | Yrd Mat Min Sub Mat Gar Mat Gar Fac Was Fac Gar Fac Gar Fac Was Fac Gar Fac Gar Fac Was Fac Gar Fac Gar Res Gar Tes Gar Res Gar Res Gar Acc Com Machines Accessed 186 | . 9 1 . 12 2 11 3 12 . 13 1 5 2 7 . 18 1 20 2 4 . 12 2 6 1 4 3 5 3 7 . 7 1 7 5 Terminals 113 | . 6 . . 9 2 7 3 7 . 7 1 1 2 3 . 8 1 10 2 3 . 3 2 2 1 3 3 4 3 5 . 5 1 5 4 Fabricators 15 | . . . . . . . . . . 1 . 2 . . . 4 . 2 . . . 3 . 2 . . . . . . . . . 1 . Repair Stations 22 | . 1 . . 2 . 1 . 2 . 2 . . . 1 . 2 . 5 . . . 3 . . . . . . . 1 . 1 . . 1 Recycling Units 4 | . 2 . . . . . . . . . . . . 1 . . . 1 . . . . . . . . . . . . . . . . . Scanalyzers 14 | . . . . . . 2 . 2 . 1 . . . 2 . 3 . 1 . . . 2 . 1 . . . . . . . . . . . Garrison Access 17 | . . . . 1 . 1 . 1 . 2 . 2 . . . 1 . 1 . 1 . 1 . 1 . 1 . 1 . 1 . 1 . 1 . Total Hacks 493 | . 28 1 . 44 4 45 6 29 . 43 1 17 4 14 . 46 1 55 4 15 . 27 2 17 2 12 7 14 7 9 . 16 2 11 10 Successful 251 | . 14 1 . 22 1 26 5 15 . 22 1 11 . 8 . 28 . 32 1 8 . 12 1 10 1 5 3 4 . 4 . 6 . 6 4 Failed 237 | . 13 . . 22 3 18 1 13 . 20 . 6 4 6 . 18 1 23 3 7 . 15 1 6 1 7 4 10 7 5 . 10 2 5 6 Catastrophic 47 | . 1 . . 2 1 3 . 1 . 5 . . 2 . . 3 1 1 2 . . 3 1 . . 3 1 4 3 3 . 2 1 1 3 Database Lockouts 5 | . 1 . . . . 1 . 1 . 1 . . . . . . . . . . . . . 1 . . . . . . . . . . . Manual 282 | . 19 . . 30 1 23 3 16 . 27 1 9 2 11 . 31 1 27 1 12 . 11 1 9 . 10 4 5 3 2 . 12 2 2 7 Terminals 309 | . 17 . . 35 4 31 6 15 . 27 1 7 4 8 . 23 1 27 4 13 . 7 2 3 2 9 7 12 7 6 . 12 2 8 9 Fabricators 36 | . . . . . . . . . . 2 . 5 . . . 11 . 5 . . . 4 . 7 . . . . . . . . . 2 . Repair Stations 71 | . 8 . . 7 . 4 . 5 . 7 . . . 3 . 6 . 19 . . . 8 . . . . . . . 1 . 2 . . 1 Recycling Units 5 | . 3 . . . . . . . . . . . . 1 . . . 1 . . . . . . . . . . . . . . . . . Scanalyzers 34 | . . . . . . 6 . 8 . 3 . . . 2 . 4 . 1 . . . 6 . 4 . . . . . . . . . . . Garrison Access 37 | . . . . 2 . 4 . 1 . 4 . 5 . . . 2 . 2 . 2 . 2 . 3 . 3 . 2 . 2 . 2 . 1 . Terminal Hacks 57 | . 1 1 . 8 1 7 4 . . 4 1 3 . . . 3 . 4 1 3 . . 1 . 1 . 3 3 . 2 . 2 . 4 . Record 1 | . . . . 1 . . . . . . . . . . . . . . . . . . . . . . . . . . . . . . . Part Schematic 6 | . . . . 2 . . . . . . . . . . . 1 . 1 . . . . . . . . . 2 . . . . . . . Robot Schematic 3 | . . . . . . . . . . 2 . . . . . 1 . . . . . . . . . . . . . . . . . . . Robot Analysis 7 | . 1 . . 3 . . . . . 1 . . . . . 1 . . . . . . . . . . . . . 1 . . . . . Prototype ID Bank 4 | . . . . . . 3 . . . . . . . . . . . 1 . . . . . . . . . . . . . . . . . Open Door 8 | . . 1 . . 1 . 1 . . . . . . . . . . . . . . . . . . . 1 1 . . . . . 3 . Branch Access Points 1 | . . . . . . . . . . . . . . . . . . . . . . . . . . . . . . . . . . 1 . Emergency Access Points 2 | . . . . . . . 1 . . . . . . . . . . . . . . . . . 1 . . . . . . . . . . Machine Index 1 | . . . . . . . . . . . . . . . . . . 1 . . . . . . . . . . . . . . . . . Terminal Index 4 | . . . . . . 1 . . . 1 . 1 . . . . . . . 1 . . . . . . . . . . . . . . . Fabricator Index 1 | . . . . . . . . . . . . . . . . . . . . 1 . . . . . . . . . . . . . . . Garrison Index 2 | . . . . . . . . . . . . . . . . . . . . 1 . . . . . . . . . 1 . . . . . Recall Investigation 2 | . . . . . . 2 . . . . . . . . . . . . . . . . . . . . . . . . . . . . . Registered Components 1 | . . . . . . . . . . . . 1 . . . . . . . . . . . . . . . . . . . . . . . Zone Layout 7 | . . . . 2 . 1 . . . . . 1 . . . . . 1 . . . . . . . . . . . . . 2 . . . Garrison Registry 4 | . . . . . . . 1 . . . 1 . . . . . . . . . . . 1 . . . 1 . . . . . . . . Patrol Navigation 1 | . . . . . . . 1 . . . . . . . . . . . . . . . . . . . . . . . . . . . . Security Stations 2 | . . . . . . . . . . . . . . . . . . . 1 . . . . . . . 1 . . . . . . . . Fabricator Hacks 15 | . . . . . . . . . . . . 2 . . . 5 . 3 . . . 1 . 4 . . . . . . . . . . . Network Status 2 | . . . . . . . . . . . . . . . . . . 1 . . . 1 . . . . . . . . . . . . . Load Schematic 8 | . . . . . . . . . . . . 1 . . . 4 . 1 . . . . . 2 . . . . . . . . . . . Build 5 | . . . . . . . . . . . . 1 . . . 1 . 1 . . . . . 2 . . . . . . . . . . . Repair Station Hacks 31 | . 5 . . 5 . 1 . 2 . 1 . . . 2 . 2 . 9 . . . 3 . . . . . . . . . 1 . . . Scan Component 15 | . 2 . . 2 . . . 1 . 1 . . . 1 . 1 . 4 . . . 2 . . . . . . . . . 1 . . . Repair 12 | . 2 . . 2 . . . 1 . . . . . 1 . 1 . 4 . . . 1 . . . . . . . . . . . . . Refit 4 | . 1 . . 1 . 1 . . . . . . . . . . . 1 . . . . . . . . . . . . . . . . . Recycling Unit Hacks . | . . . . . . . . . . . . . . . . . . . . . . . . . . . . . . . . . . . . Scanalyzer 15 | . . . . . . 5 . 5 . 2 . . . . . . . . . . . 2 . 1 . . . . . . . . . . . Insert Component 4 | . . . . . . 1 . 1 . . . . . . . . . . . . . 2 . . . . . . . . . . . . . Analyze 3 | . . . . . . 1 . 2 . . . . . . . . . . . . . . . . . . . . . . . . . . . Retrieve Study 8 | . . . . . . 3 . 2 . 2 . . . . . . . . . . . . . 1 . . . . . . . . . . . Garrison Access Hacks 19 | . . . . 1 . 1 . 1 . 3 . 3 . . . 1 . 1 . 1 . 1 . 1 . 1 . 1 . 1 . 1 . 1 . Unlock Access 14 | . . . . 1 . 1 . . . 2 . 1 . . . 1 . 1 . 1 . 1 . 1 . 1 . 1 . 1 . 1 . . . Seal Access 4 | . . . . . . . . 1 . 1 . 1 . . . . . . . . . . . . . . . . . . . . . 1 . Coupler Status 1 | . . . . . . . . . . . . 1 . . . . . . . . . . . . . . . . . . . . . . . Unauthorized Hacks 114 | . 8 . . 8 . 12 1 7 . 12 . 3 . 6 . 17 . 15 . 4 . 5 . 4 . 4 . . . 1 . 2 . 1 4 Terminals 75 | . 6 . . 7 . 11 1 6 . 8 . 2 . 3 . 8 . 9 . 4 . 1 . 1 . 3 . . . 1 . 1 . . 3 Track 3 | . . . . . . 2 . . . . . . . . . . . 1 . . . . . . . . . . . . . . . . . Assimilate 5 | . . . . . . . . . . . . . . . . . . 1 . . . . . . . 2 . . . 1 . . . . 1 Botnet 24 | . 1 . . 2 . 2 . 1 . 3 . 1 . 1 . 3 . 2 . 2 . 1 . 1 . 1 . . . . . 1 . . 2 Disrupt 1 | . . . . . . 1 . . . . . . . . . . . . . . . . . . . . . . . . . . . . . Skim 41 | . 5 . . 5 . 6 . 5 . 5 . 1 . 2 . 5 . 5 . 2 . . . . . . . . . . . . . . . Override 1 | . . . . . . . 1 . . . . . . . . . . . . . . . . . . . . . . . . . . . . Fabricators 10 | . . . . . . . . . . 2 . 1 . . . 3 . . . . . 2 . 1 . . . . . . . . . 1 . Prioritize 2 | . . . . . . . . . . . . 1 . . . . . . . . . . . 1 . . . . . . . . . . . Liberate 1 | . . . . . . . . . . 1 . . . . . . . . . . . . . . . . . . . . . . . . . Overload 2 | . . . . . . . . . . . . . . . . . . . . . . 1 . . . . . . . . . . . 1 . Download 2 | . . . . . . . . . . 1 . . . . . . . . . . . 1 . . . . . . . . . . . . . Recompile 3 | . . . . . . . . . . . . . . . . 3 . . . . . . . . . . . . . . . . . . . Repair Stations 10 | . . . . 1 . . . . . 1 . . . . . 2 . 3 . . . 1 . . . . . . . . . 1 . . 1 Mechanics 1 | . . . . . . . . . . . . . . . . . . 1 . . . . . . . . . . . . . . . . . Patch 9 | . . . . 1 . . . . . 1 . . . . . 2 . 2 . . . 1 . . . . . . . . . 1 . . 1 Recycling Units 4 | . 2 . . . . . . . . . . . . 1 . . . 1 . . . . . . . . . . . . . . . . . Recyclers 2 | . . . . . . . . . . . . . . 1 . . . 1 . . . . . . . . . . . . . . . . . Tunnel 2 | . 2 . . . . . . . . . . . . . . . . . . . . . . . . . . . . . . . . . . Scanalyzers 9 | . . . . . . . . 1 . 1 . . . 2 . 3 . 1 . . . . . 1 . . . . . . . . . . . Extract 9 | . . . . . . . . 1 . 1 . . . 2 . 3 . 1 . . . . . 1 . . . . . . . . . . . Garrison Access 6 | . . . . . . 1 . . . . . . . . . 1 . 1 . . . 1 . 1 . 1 . . . . . . . . . Reprogram 6 | . . . . . . 1 . . . . . . . . . 1 . 1 . . . 1 . 1 . 1 . . . . . . . . . Data Cores Recovered 6 | . . . . . . 1 . . . . . . . . . . . . . . . . . 2 . . . . . . . 2 . . 1 Used . | . . . . . . . . . . . . . . . . . . . . . . . . . . . . . . . . . . . . Hacking Detections 149 | . 7 . . 9 1 11 1 11 . 12 1 5 2 4 . 11 1 16 2 4 . 9 2 6 1 4 1 4 3 7 . 7 1 2 4 Full Trace Events 28 | . 1 . . 1 1 3 . 1 . 2 . 1 2 1 . 1 . . 1 . . 5 . 1 . 1 . 1 2 . . 1 1 . 1 Feedback Events 5 | . . . . . . . . . . . . . 2 . . . . . . . . . . . . . . 2 . . . 1 . . . Corruption 2 | . . . . . . . . . . . . . 1 . . . . . . . . . . . . . . . . . . 1 . . . Hackware Fried 3 | . . . . . . . . . . . . . 1 . . . . . . . . . . . . . . 2 . . . . . . . Feedback Blocked . | . . . . . . . . . . . . . . . . . . . . . . . . . . . . . . . . . . . . Robot Schematics Acquired 5 | . . . . . . . . . . 3 . . . . . 1 . . . . . . . . . . . . 1 . . . . . . Robots Built 1 | . . . . . . . . . . . . . . . . 1 . . . . . . . . . . . . . . . . . . . Authchips 1 | . . . . . . . . . . . . . . . . 1 . . . . . . . . . . . . . . . . . . . Time 58 | . . . . . . . . . . . . . . . . 58 . . . . . . . . . . . . . . . . . . . Total Robot Build Rating 3 | . . . . . . . . . . . . . . . . 3 . . . . . . . . . . . . . . . . . . . Part Schematics Acquired 62 | . . . . 2 . 1 . 14 . 6 . . . 21 . 7 . 4 . . . 1 . 3 . . . 2 1 . . . . . . Parts Built 7 | . . . . . . . . . . . . 2 . . . . . 2 . . . . . 3 . . . . . . . . . . . Authchips 2 | . . . . . . . . . . . . . . . . . . 1 . . . . . 1 . . . . . . . . . . . Time 169 | . . . . . . . . . . . . 36 . . . . . 31 . . . . . 102 . . . . . . . . . . . Total Part Build Rating 35 | . . . . . . . . . . . . 6 . . . . . 10 . . . . . 19 . . . . . . . . . . . Part Studies Acquired 7 | . . . . . . 2 . 2 . 2 . . . . . . . . . . . . . 1 . . . . . . . . . . . Parts Repaired 12 | . 2 . . 2 . . . 1 . . . . . 1 . 1 . 4 . . . 1 . . . . . . . . . . . . . Time 366 | . 64 . . 64 . . . 19 . . . . . 32 . 28 . 127 . . . 32 . . . . . . . . . . . . . Parts Recycled . | . . . . . . . . . . . . . . . . . . . . . . . . . . . . . . . . . . . . Recycled Matter . | . . . . . . . . . . . . . . . . . . . . . . . . . . . . . . . . . . . . Retrieved Matter . | . . . . . . . . . . . . . . . . . . . . . . . . . . . . . . . . . . . . Retrieved Components . | . . . . . . . . . . . . . . . . . . . . . . . . . . . . . . . . . . . . Parts Scanalyzed 3 | . . . . . . 1 . 1 . . . . . . . . . . . . . 1 . . . . . . . . . . . . . Part Schematics Acquired 2 | . . . . . . 1 . 1 . . . . . . . . . . . . . . . . . . . . . . . . . . . Parts Damaged . | . . . . . . . . . . . . . . . . . . . . . . . . . . . . . . . . . . . . Bothacking | -11 -10 -10 -10 -8 -8 -8 -8 -7 -7 -7 -7 -6 -6 -5 -5 -5 -5 -5 -5 -4 -4 -4 -4 -4 -4 -3 -3 -3 -3 -2 -2 -2 -2 -1 -1 ------------ Run | Yrd Mat Min Sub Mat Gar Mat Gar Fac Was Fac Gar Fac Gar Fac Was Fac Gar Fac Gar Fac Was Fac Gar Fac Gar Res Gar Tes Gar Res Gar Res Gar Acc Com Used RIF Installer 13 | . . . . . 2 . 1 . . . 1 . 1 . . . 1 . 1 . . . 1 . 1 . 1 . 1 . 1 . 1 . . Coupler Efficiency 1 | . . . . . . . . . . . . . . . . . . . . . . . . . 1 . . . . . . . . . . Threat Obfuscator 2 | . . . . . . . . . . . . . . . . . 1 . . . . . 1 . . . . . . . . . . . . Signal Jammer 1 | . . . . . 1 . . . . . . . . . . . . . . . . . . . . . . . . . . . . . . Robot Detection 1 | . . . . . . . . . . . . . . . . . . . . . . . . . . . . . 1 . . . . . . Watcher Feeds 1 | . . . . . . . . . . . . . . . . . . . 1 . . . . . . . . . . . . . . . . Alert ID Control 1 | . . . . . . . . . . . . . . . . . . . . . . . . . . . . . . . . . 1 . . Structural Interface 1 | . . . . . . . 1 . . . . . . . . . . . . . . . . . . . . . . . . . . . . Autooverride 1 | . . . . . . . . . . . . . 1 . . . . . . . . . . . . . . . . . . . . . . Autoassimilate 2 | . . . . . . . . . . . 1 . . . . . . . . . . . . . . . . . . . 1 . . . . Crosswire 1 | . . . . . . . . . . . . . . . . . . . . . . . . . . . 1 . . . . . . . . Robots Hacked 162 | . . . . . . . 2 1 . . 1 1 . 2 . 12 7 10 5 6 . 1 5 1 9 2 11 1 21 21 2 5 14 15 7 Non-combat 25 | . . . . . . . . 1 . . . 1 . 2 . 4 . 3 . 4 . . . 1 . . . . . 4 . . 1 4 . Combat 137 | . . . . . . . 2 . . . 1 . . . . 8 7 7 5 2 . 1 5 . 9 2 11 1 21 17 2 5 13 11 7 Autooverrided 23 | . . . . . . . . . . . . . . . . 2 . 1 . . . 1 . . 2 1 1 . 4 5 1 2 . 2 1 Autoassimilated 41 | . . . . . . . . . . . 1 . . . . 3 3 2 . . . . . . 3 . 1 . 3 6 1 3 8 5 2 Robot Hacks Applied 105 | . . . . . . . 2 1 . . . 1 . 2 . 8 4 9 5 6 . . 5 1 4 2 9 1 15 10 . . 7 9 4 parse_system 4 | . . . . . . . . . . . . . . . . . 1 1 . . . . . . . . . . . . . . 1 . 1 find_chute 1 | . . . . . . . . 1 . . . . . . . . . . . . . . . . . . . . . . . . . . . map_earth 1 | . . . . . . . . . . . . . . . . . . . . . . . . . . . . . . 1 . . . . . drop_inventory 9 | . . . . . . . . . . . . . . 2 . 3 . 2 . . . . . 1 . . . . . 1 . . . . . ignore_parts 1 | . . . . . . . . . . . . . . . . . . . . . . . . . . . . . . . . . . 1 . deconstruct_bot 1 | . . . . . . . . . . . . . . . . . . . . 1 . . . . . . . . . . . . . . . purge_threat 1 | . . . . . . . . . . . . . . . . . . 1 . . . . . . . . . . . . . . . . . block_reporting 2 | . . . . . . . . . . . . . . . . . . . . 1 . . . . . . . . . . . . . 1 . focus_fire 1 | . . . . . . . . . . . . . . . . . 1 . . . . . . . . . . . . . . . . . . amplify_resonance 22 | . . . . . . . 1 . . . . . . . . 2 1 2 1 . . . . . 4 . 2 . 3 3 . . 1 2 . wipe_record 2 | . . . . . . . . . . . . . . . . . . . . . . . . . . . . . . . . . . 2 . reboot_system 11 | . . . . . . . . . . . . . . . . 1 1 1 1 1 . . . . . 2 . . 2 1 . . . 1 . overwrite_iff 12 | . . . . . . . 1 . . . . . . . . 1 . . . . . . 1 . . . 3 . . . . . 3 1 2 formatsys_low 6 | . . . . . . . . . . . . 1 . . . 1 . 1 . 1 . . . . . . . 1 . . . . 1 . . formatsys_high 31 | . . . . . . . . . . . . . . . . . . 1 3 2 . . 4 . . . 4 . 10 4 . . 1 1 1 Relay Couplers Released 128 | . . . . . 12 . 17 . . . 3 . 6 . . . 13 . 20 . . . 5 . 9 . 13 . 16 . 5 . 9 . . Machine Destruction 128 | . . . . . 12 . 17 . . . 3 . 6 . . . 13 . 20 . . . 5 . 9 . 13 . 16 . 5 . 9 . . Attached 50 | . . . . . . . 2 1 . . 1 . 1 1 . . 4 1 4 1 . . 4 . 3 . 5 . 9 2 3 . 5 1 2 Crosswired 14 | . . . . . . . . . . . . . . . . . . . . . . . . . . . 5 . 5 . 2 . 2 . . Fabnet Peak Effective % . | . . . . . . . . . . . . . . . . . . . . . . . . . . . . . . . . . . . . Robots Rewired 45 | . . . . . . . 2 1 . . . . . . . . 4 . 5 6 . . . . . . 3 . 21 . 3 . . . . Allies Hacked 9 | . . . . . . . . . . . . . . . . . . 1 1 1 . . . . . . . 2 1 1 . 1 . . 1 Hacks Repelled . | . . . . . . . . . . . . . . . . . . . . . . . . . . . . . . . . . . . . Allies | -11 -10 -10 -10 -8 -8 -8 -8 -7 -7 -7 -7 -6 -6 -5 -5 -5 -5 -5 -5 -4 -4 -4 -4 -4 -4 -3 -3 -3 -3 -2 -2 -2 -2 -1 -1 -------- Run | Yrd Mat Min Sub Mat Gar Mat Gar Fac Was Fac Gar Fac Gar Fac Was Fac Gar Fac Gar Fac Was Fac Gar Fac Gar Res Gar Tes Gar Res Gar Res Gar Acc Com Total Allies 180 | . . . . . 1 . 3 1 . . 1 1 . . 1 10 7 10 10 9 . 1 5 2 5 3 16 1 38 16 5 5 13 9 7 Largest Group 32 | . . . . . 1 . 3 1 . . 1 1 . . 1 2 7 3 7 13 . 1 3 2 2 3 9 10 28 32 10 9 7 5 2 Highest-Rated Group 1774 | . . . . . 25 . 75 25 . . 16 23 . . 31 82 195 64 329 693 . 49 143 112 112 119 526 575 1542 1774 640 489 374 327 291 Highest-Rated Ally 183 | . . . . . 25 . 39 25 . . 16 23 . . 31 41 41 29 119 119 . 49 49 56 56 64 80 80 80 148 89 64 58 183 152 Total Orders 12 | . . . . . . . . . . . . 3 . . . 1 . 2 5 1 . . . . . . . . . . . . . . . STAY 4 | . . . . . . . . . . . . 1 . . . . . 1 2 . . . . . . . . . . . . . . . . FOLLOW 4 | . . . . . . . . . . . . . . . . . . 1 3 . . . . . . . . . . . . . . . . AID 4 | . . . . . . . . . . . . 2 . . . 1 . . . 1 . . . . . . . . . . . . . . . Ally Attacks 749 | . . . . . 9 . 15 2 . . . 2 . . . 14 62 21 68 81 . . 20 3 27 . 34 8 85 166 8 34 30 42 18 Total Damage 23564 | . . . . . 251 . 410 58 . . . 16 . . . 226 1506 124 1322 2448 . . 722 139 758 . 894 301 3144 6539 315 1168 1070 1195 958 Kills 141 | . . . . . 1 . 5 . . . . . . . . . 11 3 10 29 . . . 1 5 . 6 . 18 34 1 6 2 7 2 Allies Corrupted 12 | . . . . . . . . . . . . . . . . . . . 2 1 . . . . . . . 1 1 5 . . 1 1 . Allies Melted 3 | . . . . . 1 . . . . . . . . . . . . . . . . . . . . . . . . . . . 2 . . Intel | -11 -10 -10 -10 -8 -8 -8 -8 -7 -7 -7 -7 -6 -6 -5 -5 -5 -5 -5 -5 -4 -4 -4 -4 -4 -4 -3 -3 -3 -3 -2 -2 -2 -2 -1 -1 ------- Run | Yrd Mat Min Sub Mat Gar Mat Gar Fac Was Fac Gar Fac Gar Fac Was Fac Gar Fac Gar Fac Was Fac Gar Fac Gar Res Gar Tes Gar Res Gar Res Gar Acc Com Active Infowar (turns) 7751 | . 784 227 445 472 . . . . . . . . . . . 406 . 624 267 542 18 303 297 301 210 273 354 150 649 467 130 204 241 234 153 Optics 6522 | . 784 227 445 472 . . . . . . . . . . . . . . 68 542 18 303 297 301 210 273 354 150 649 467 130 204 241 234 153 Sensors 2106 | . . . . . . . . . . . . . . . . . . 624 199 416 18 293 1 276 5 218 56 . . . . . . . . Structural 1479 | . . . . . . . . . . . . . . . . 406 . . . 455 18 303 18 . . . . . . . . . . 160 119 Robot Analysis Total 7 | . 1 . . 3 . . . . . 1 . . . . . 1 . . . . . . . . . . . . . 1 . . . . . Derelict Logs Recovered 3 | . . 1 2 . . . . . . . . . . . . . . . . . . . . . . . . . . . . . . . . Drone Launches . | . . . . . . . . . . . . . . . . . . . . . . . . . . . . . . . . . . . . Drone Recoveries . | . . . . . . . . . . . . . . . . . . . . . . . . . . . . . . . . . . . . Exploration | -11 -10 -10 -10 -8 -8 -8 -8 -7 -7 -7 -7 -6 -6 -5 -5 -5 -5 -5 -5 -4 -4 -4 -4 -4 -4 -3 -3 -3 -3 -2 -2 -2 -2 -1 -1 ------------- Run | Yrd Mat Min Sub Mat Gar Mat Gar Fac Was Fac Gar Fac Gar Fac Was Fac Gar Fac Gar Fac Was Fac Gar Fac Gar Res Gar Tes Gar Res Gar Res Gar Acc Com Turns Passed 13056 | 21 888 227 445 493 358 568 562 482 20 552 170 437 271 187 16 1002 405 833 593 542 18 303 297 301 210 273 354 150 649 467 130 204 241 234 153 Spaces Moved 26550 | 30 817 651 835 815 587 890 744 1246 85 1225 415 795 567 559 78 2270 812 1871 1216 1320 76 868 638 389 360 917 642 382 1121 1159 154 519 394 662 441 Core 41 | 30 10 . . . . . . . . . . . . . . . . 1 . . . . . . . . . . . . . . . . . Treads . | . . . . . . . . . . . . . . . . . . . . . . . . . . . . . . . . . . . . Legs . | . . . . . . . . . . . . . . . . . . . . . . . . . . . . . . . . . . . . Wheels . | . . . . . . . . . . . . . . . . . . . . . . . . . . . . . . . . . . . . Hover . | . . . . . . . . . . . . . . . . . . . . . . . . . . . . . . . . . . . . Flight 26509 | . 807 651 835 815 587 890 744 1246 85 1225 415 795 567 559 78 2270 812 1870 1216 1320 76 868 638 389 360 917 642 382 1121 1159 154 519 394 662 441 Fastest Speed 13 | 50 32 32 32 26 26 26 26 23 23 23 23 23 20 20 20 20 20 15 16 17 21 21 20 18 13 13 15 15 16 16 27 24 24 24 22 Average Speed 22 | 50 32 32 32 26 26 26 26 23 23 23 23 24 21 20 20 23 25 19 17 20 21 21 20 20 15 15 15 16 18 18 27 24 24 24 22 Slowest Speed 250 | 50 50 32 32 32 26 26 29 104 23 106 23 109 23 20 20 103 108 250 104 21 21 104 25 21 103 16 16 20 22 29 27 27 24 24 25 Overloaded Moves . | . . . . . . . . . . . . . . . . . . . . . . . . . . . . . . . . . . . . Propulsion Burnouts . | . . . . . . . . . . . . . . . . . . . . . . . . . . . . . . . . . . . . Robots Hopped 194 | . 14 6 3 13 2 12 . 13 2 10 3 5 . 3 3 16 . 9 1 36 1 9 2 . 3 3 . . 2 17 . 1 . 1 4 Potential Cave-ins . | . . . . . . . . . . . . . . . . . . . . . . . . . . . . . . . . . . . . Cave-ins Triggered . | . . . . . . . . . . . . . . . . . . . . . . . . . . . . . . . . . . . . Exploration Rate (%) 51 | 3 92 91 35 71 61 87 85 39 75 42 62 21 54 19 66 53 82 48 81 27 81 36 67 20 47 27 66 47 96 39 22 18 52 28 30 Regions Visited 35 Branch Regions 4 Pre-discovered Areas 15 | . 3 1 1 2 . 1 . 2 . 2 . . . . . 2 . 1 . . . . . . . . . . . . . . . . . Known Exits Taken 15 | . 1 . 1 1 . 1 . . . 1 . 1 . . . 1 . 1 . . . 1 . 1 . 1 . 1 . 1 . 1 . 1 . Unknown Exits Taken 2 | 1 . 1 . . . . . . . . . . . . . . . . . . . . . . . . . . . . . . . . . Scrap Searched 6 | . . 1 5 . . . . . . . . . . . . . . . . . . . . . . . . . . . . . . . . Spaces Dug 217 | . 1 . . 1 3 6 22 10 . 14 . 3 . 4 . 19 2 27 . 11 . 18 2 6 . 18 . 4 29 8 . 3 . 5 1 Terrain Destroyed 494 | . 1 . . 21 49 6 52 10 . 14 . 3 27 4 . 19 2 31 65 11 . 18 6 17 27 18 21 4 29 12 18 3 . 5 1 Melee 209 | . . . . 1 3 6 15 10 . 14 . 3 . 4 . 19 2 27 . 11 . 18 2 6 . 18 . 4 29 8 . 3 . 5 1 Projectile 5 | . 1 . . . . . . . . . . . . . . . . . . . . . . . 4 . . . . . . . . . . AOE 280 | . . . . 20 46 . 37 . . . . . 27 . . . . 4 65 . . . 4 11 23 . 21 . . 4 18 . . . . Terrain Rammed . | . . . . . . . . . . . . . . . . . . . . . . . . . . . . . . . . . . . . Walls Destroyed . | . . . . . . . . . . . . . . . . . . . . . . . . . . . . . . . . . . . . Machines Disabled . | . . . . . . . . . . . . . . . . . . . . . . . . . . . . . . . . . . . . Actions | -11 -10 -10 -10 -8 -8 -8 -8 -7 -7 -7 -7 -6 -6 -5 -5 -5 -5 -5 -5 -4 -4 -4 -4 -4 -4 -3 -3 -3 -3 -2 -2 -2 -2 -1 -1 --------- Run | Yrd Mat Min Sub Mat Gar Mat Gar Fac Was Fac Gar Fac Gar Fac Was Fac Gar Fac Gar Fac Was Fac Gar Fac Gar Res Gar Tes Gar Res Gar Res Gar Acc Com Total 31887 | 33 1371 664 978 977 723 1167 994 1361 82 1422 483 966 684 618 74 2622 959 2229 1521 1497 75 949 782 587 462 997 855 445 1479 1343 228 563 517 706 474 Wait 3249 | . 509 15 113 90 66 241 96 54 . 89 62 104 63 42 . 224 50 252 126 125 . 48 78 149 23 20 145 23 197 133 51 6 51 1 3 Move 26156 | 29 789 638 828 789 582 865 743 1222 81 1206 409 784 566 553 72 2237 811 1853 1213 1257 73 852 633 388 354 910 641 381 1116 1129 153 516 392 659 432 Hop 169 | . 13 6 3 13 2 12 . 11 1 9 2 5 . 3 2 16 . 8 1 27 1 7 2 . 2 3 . . 2 12 . 1 . 1 4 Pick Up 100 | . 6 2 1 5 3 1 4 6 . 2 3 1 1 2 . 9 4 7 8 4 . 3 . 3 3 1 5 . 4 1 2 1 3 2 3 Fast Attach 181 | 4 9 . 4 11 . 3 3 9 . 4 1 3 2 2 . 10 8 15 17 4 1 4 4 6 6 11 2 9 4 4 3 5 9 2 2 Attach 89 | . 1 . . 4 . . 3 3 . 4 . 3 2 3 . 3 6 6 9 4 . 2 4 4 5 2 2 1 3 5 . 3 2 1 4 Detach 39 | . . . . 2 . 1 . 1 . 3 . 2 1 1 . 5 1 2 3 1 . 1 1 3 4 2 . 1 . . . 3 1 . . Swap 224 | . 1 . 1 8 5 7 13 6 . 15 . 5 13 2 . 15 7 13 30 12 . 4 10 8 12 5 8 4 8 3 . . . 4 5 Drop 195 | . 6 3 3 5 3 5 2 7 . 10 3 1 1 1 . 20 11 9 23 7 . 7 5 5 9 11 7 10 3 2 . 4 7 2 3 Fire 667 | . 37 . 25 48 28 24 38 22 . 16 . 49 18 2 . 34 23 16 59 32 . 1 8 4 39 2 21 1 60 19 2 . 20 14 5 Melee 530 | . . . . 1 21 8 32 20 . 19 2 8 2 7 . 49 19 43 12 20 . 20 12 17 5 30 21 14 42 29 6 22 18 19 12 Ram . | . . . . . . . . . . . . . . . . . . . . . . . . . . . . . . . . . . . . Kick . | . . . . . . . . . . . . . . . . . . . . . . . . . . . . . . . . . . . . Crush . | . . . . . . . . . . . . . . . . . . . . . . . . . . . . . . . . . . . . Escape Stasis 198 | . . . . . 13 . 60 . . 45 . . 15 . . . 19 . 15 . . . 22 . . . . . 1 . . . 8 . . Rewire 89 | . . . . . . . . . . . 1 1 . . . . . 5 5 4 . . 3 . . . 3 1 39 6 11 2 6 1 1 Trap 1 | . . . . 1 . . . . . . . . . . . . . . . . . . . . . . . . . . . . . . . Miscellaneous . | . . . . . . . . . . . . . . . . . . . . . . . . . . . . . . . . . . . . Route ------- -11/Scrapyard -10/Materials (discovered 6 exits: *Mat x3 / *Min x2 / [*Sub]) -10/Mines (discovered 3 exits: *Mat x2 / [*Sub]) -10/Subcaves (discovered 3 exits: *Mat x2 / Rec) -8/Materials (discovered 4 exits: *Fac x3 / Gar) -8/Garrison (discovered 3 exits: *Mat x3) -8/Materials (discovered 4 exits: *Fac x3 / Gar) -8/Garrison (discovered 3 exits: *Fac x3) -7/Factory (discovered 7 exits: Fac x3 / *Sto x2 / *Low x2) -7/Waste -7/Factory (discovered 7 exits: *Fac x3 / Sto / *Low x2 / Gar) -7/Garrison (discovered 3 exits: *Fac x3) -6/Factory (discovered 2 exits: Ext / Gar) -6/Garrison (discovered 2 exits: *Fac x2) -5/Factory (discovered 3 exits: *Fac / Upp x2) -5/Waste -5/Factory (discovered 5 exits: *Fac x2 / *Upp x2 / Gar) -5/Garrison (discovered 3 exits: *Fac x3) -5/Factory (discovered 5 exits: *Fac x2 / *Upp x2 / Gar) -5/Garrison (discovered 2 exits: *Fac x2) -4/Factory (discovered 2 exits: *Res / Gar) -4/Waste -4/Factory (discovered 2 exits: [*Upp] / Gar) -4/Garrison (discovered 3 exits: *Fac x3) -4/Factory (discovered 3 exits: *Res / [*Upp] / Gar) -4/Garrison -3/Research (discovered 3 exits: *Tes x2 / Gar) -3/Garrison (discovered 3 exits: *Tes x3) -3/Testing -3/Garrison (discovered 3 exits: *Res x3) -2/Research -2/Garrison -2/Research (discovered 2 exits: [*Qua] / Gar) -2/Garrison -1/Access -1/Command To Epsilon Eridani History --------- Turn | Location | Event 7 | -11/Scrapyard | Discovered new exit (range 16) 22 | -11/Scrapyard | Entered Materials 68 | -10/Materials | Discovered new exit (range 11) 214 | -10/Materials | Discovered new exit (range 9) 243 | -10/Materials | Discovered new exit (range 10) 269 | -10/Materials | Discovered new exit (range 7) 300 | -10/Materials | Build established: Sprinter 353 | -10/Materials | Identified exit to Mines 353 | -10/Materials | Identified exit to Materials 356 | -10/Materials | Repaired VTOL Module 389 | -10/Materials | Repaired VTOL Module 397 | -10/Materials | Discovered new exit (range 8) 522 | -10/Materials | Derelicts attacked the area 563 | -10/Materials | Learned 4 Subcaves zone layouts 681 | -10/Materials | Learned 4 Subcaves zone layouts 719 | -10/Materials | Loaded intel: 8 terminal locations 800 | -10/Materials | Central database locked down 886 | -10/Materials | Learned 4 Subcaves zone layouts 910 | -10/Materials | Entered Mines 968 | -10/Mines | Found the Drone Emporium 980 | -10/Mines | Found a hidden stash of uninstalled traps 1021 | -10/Mines | Learned location of Zion (-6) 1055 | -10/Mines | Joined a pair of Derelicts in attacking an 0b10 outpost 1072 | -10/Mines | A weapon hastily lodged in a ceiling crevice suddenly fell to the ground 1135 | -10/Mines | Discovered new exit (range 6) 1137 | -10/Mines | Entered Subcaves 1138 | -10/Subcaves | Approached by a straggling Scientist 1138 | -10/Subcaves | Identified exit to Materials 1146 | -10/Subcaves | Identified exit to Recycling 1159 | -10/Subcaves | Shifting Twisted Machinery released Flamer 1173 | -10/Subcaves | Ambushed by Subdwellers from Twisted Machinery 1200 | -10/Subcaves | Core integrity fell below 50% 1230 | -10/Subcaves | Lost 3 parts (1p2w) 1362 | -10/Subcaves | Learned location of Mines (-8) 1582 | -10/Subcaves | Entered Materials 1582 | -8/Materials | Evolved 4 slots: Propulsion x2, Utility x2 1697 | -8/Materials | Discovered new exit (range 5) 1783 | -8/Materials | Learned location of 1 exit from Recycling 1801 | -8/Materials | Learned 2 Lower Caves zone layouts 1810 | -8/Materials | Learned 4 Lower Caves zone layouts 1811 | -8/Materials | Identified exit to Factory 1812 | -8/Materials | Learned location of 2 exits from Factory 1813 | -8/Materials | Learned Factory emergency access door positions 1823 | -8/Materials | Learned Factory emergency access door positions 1842 | -8/Materials | Learned location of 1 exit from Storage 1881 | -8/Materials | Repaired Battle Rifle 1914 | -8/Materials | Repaired VTOL Module 1919 | -8/Materials | Discovered exit to Factory (range 17) 2075 | -8/Materials | Identified exit to Garrison 2075 | -8/Materials | Entered Garrison 2076 | -8/Garrison | Identified exit to Materials 2077 | -8/Garrison | Triggered checkpoint 2105 | -8/Garrison | Installed Relay Interface Framework 2127 | -8/Garrison | Triggered checkpoint 2140 | -8/Garrison | Garrison Relay disabled 2149 | -8/Garrison | Rescued a captive Derelict 2268 | -8/Garrison | Expanded RIF knowledge: Signal Jamming 2274 | -8/Garrison | Garrison Relay disabled 2301 | -8/Garrison | Triggered checkpoint 2345 | -8/Garrison | Triggered checkpoint 2373 | -8/Garrison | Triggered checkpoint 2388 | -8/Garrison | Destroyed 8 combat bots 2412 | -8/Garrison | Garrison Relay disabled 2433 | -8/Garrison | Entered Materials 2572 | -8/Materials | Discovered exit to Factory (range 8) 2624 | -8/Materials | Discovered exit to Factory (range 3) 2635 | -8/Materials | Central database locked down 2660 | -8/Materials | Core integrity fell below 50% 2787 | -8/Materials | Learned Storage trap positions 2843 | -8/Materials | Learned 2 Storage zone layouts 2984 | -8/Materials | Learned 2 Storage zone layouts 3000 | -8/Materials | Identified exit to Garrison 3001 | -8/Materials | Entered Garrison 3057 | -8/Garrison | Triggered checkpoint 3068 | -8/Garrison | Garrison Relay disabled 3107 | -8/Garrison | Triggered checkpoint 3207 | -8/Garrison | Garrison Relay disabled 3233 | -8/Garrison | Discovered exit to Factory (range 11) 3343 | -8/Garrison | Triggered checkpoint 3376 | -8/Garrison | Triggered checkpoint 3409 | -8/Garrison | Garrison Relay disabled 3435 | -8/Garrison | Garrison Relay disabled 3449 | -8/Garrison | Discovered exit to Factory (range 7) 3449 | -8/Garrison | Discovered exit to Factory (range 76) 3449 | -8/Garrison | Discovered exit to Factory (range 81) 3509 | -8/Garrison | Expanded RIF knowledge: Structural Interface 3561 | -8/Garrison | Triggered checkpoint 3563 | -8/Garrison | Entered Factory 3563 | -7/Factory | Evolved 2 slots: Propulsion x1, Utility x1 3564 | -7/Factory | Identified exit to Storage 3565 | -7/Factory | Identified exit to Factory 3565 | -7/Factory | Identified exit to Lower Caves 3727 | -7/Factory | Discovered exit to Lower Caves (range 5) 3881 | -7/Factory | Learned location of Lower Caves (-7) 3908 | -7/Factory | Central database locked down 3962 | -7/Factory | Repaired Lgt. Deuterium Engine 3973 | -7/Factory | Learned location of 2 exits from Archives 4012 | -7/Factory | Learned 2 Extension zone layouts 4038 | -7/Factory | Learned location of 1 exit from Upper Caves 4045 | -7/Factory | Manually triggered Chute Trap 4045 | -7/Factory | Sucked down chute 4045 | -7/Factory | Entered Waste 4052 | -7/Waste | Spotted C-40 Crusher 4055 | -7/Waste | Spotted C-40 Crusher 4060 | -7/Waste | EMP discharged 4061 | -7/Waste | Spotted C-40 Crusher 4061 | -7/Waste | Spotted C-40 Crusher 4062 | -7/Waste | Spotted C-40 Crusher 4062 | -7/Waste | Discovered new exit (range 12) 4062 | -7/Waste | Spotted C-40 Crusher 4065 | -7/Waste | Entered Factory 4198 | -7/Factory | Identified exit to Garrison 4343 | -7/Factory | Discovered exit to Factory (range 12) 4465 | -7/Factory | Search patrols dispatched 4499 | -7/Factory | Discovered exit to Factory (range 10) 4518 | -7/Factory | Learned Extension stockpile data 4550 | -7/Factory | Learned Hub_04(d) emergency access door positions 4586 | -7/Factory | Learned 2 Proximity Caves zone layouts 4589 | -7/Factory | Learned location of 2 exits from Archives 4590 | -7/Factory | Learned location of Proximity Caves (-5) 4599 | -7/Factory | Central database locked down 4603 | -7/Factory | Learned Hub_04(d) emergency access door positions 4617 | -7/Factory | Identified exit to Garrison 4617 | -7/Factory | Entered Garrison 4621 | -7/Garrison | Met a derelict Sapper fleeing the area 4627 | -7/Garrison | Phase Generator disabled 4663 | -7/Garrison | Triggered checkpoint 4667 | -7/Garrison | Garrison Relay disabled 4673 | -7/Garrison | Triggered checkpoint 4689 | -7/Garrison | Discovered exit to Factory (range 43) 4689 | -7/Garrison | Discovered exit to Factory (range 61) 4689 | -7/Garrison | Discovered exit to Factory (range 44) 4715 | -7/Garrison | Expanded RIF knowledge: Autoassimilate 4749 | -7/Garrison | Triggered checkpoint 4787 | -7/Garrison | Entered Factory 4787 | -6/Factory | Accompanied by 1 ally 4787 | -6/Factory | Evolved 2 slots: Propulsion x1, Utility x1 4788 | -6/Factory | Identified exit to Extension 5137 | -6/Factory | Search patrols dispatched 5158 | -6/Factory | Fabricated Cesium-ion Thruster (x2) 5214 | -6/Factory | Identified exit to Garrison 5224 | -6/Factory | Entered Garrison 5242 | -6/Garrison | Garrison Relay disabled 5280 | -6/Garrison | Triggered checkpoint 5419 | -6/Garrison | Expanded RIF knowledge: Autooverride 5429 | -6/Garrison | Discovered new exit (range 5) 5480 | -6/Garrison | Triggered checkpoint 5483 | -6/Garrison | Garrison Relay disabled 5489 | -6/Garrison | Discovered new exit (range 9) 5490 | -6/Garrison | Hacking Suite fried by hacking feedback 5495 | -6/Garrison | Entered Factory 5495 | -5/Factory | Evolved 2 slots: Power x1, Utility x1 5496 | -5/Factory | Identified exit to Upper Caves 5553 | -5/Factory | Spotted B-75 Beast 5575 | -5/Factory | Discovered new exit (range 7) 5676 | -5/Factory | Repaired VTOL Module+ 5682 | -5/Factory | Sucked down chute 5682 | -5/Factory | Entered Waste 5683 | -5/Waste | Met a frightened Derelict 5686 | -5/Waste | Spotted C-40 Crusher 5687 | -5/Waste | Spotted C-40 Crusher 5688 | -5/Waste | Spotted C-40 Crusher 5691 | -5/Waste | Spotted C-40 Crusher 5693 | -5/Waste | Spotted C-40 Crusher 5694 | -5/Waste | Spotted C-40 Crusher 5696 | -5/Waste | Discovered new exit (range 8) 5697 | -5/Waste | EMP discharged 5698 | -5/Waste | Entered Factory 5837 | -5/Factory | Fabricated O-24 Administrator? 5976 | -5/Factory | Build established: Bothacker-Sprinter 6001 | -5/Factory | Spotted B-75 Beast 6016 | -5/Factory | Discovered new exit (range 13) 6094 | -5/Factory | Discovered new exit (range 15) 6298 | -5/Factory | Search patrols dispatched 6350 | -5/Factory | Repaired Nuclear Pulse Array 6401 | -5/Factory | Learned Testing terminal intel 6458 | -5/Factory | Learned location of 1 exit from Armory 6507 | -5/Factory | Learned location of Armory (-3) 6554 | -5/Factory | Identified exit to Garrison 6579 | -5/Factory | Learned Testing terminal intel 6600 | -5/Factory | Learned 4 Testing zone layouts 6677 | -5/Factory | Learned Research stockpile data 6700 | -5/Factory | Entered Garrison 6700 | -5/Garrison | Accompanied by 2 allies 6705 | -5/Garrison | Expanded RIF knowledge: Threat Obfuscation 6732 | -5/Garrison | Triggered checkpoint 6826 | -5/Garrison | Garrison Relay disabled 6890 | -5/Garrison | Triggered checkpoint 6923 | -5/Garrison | Triggered checkpoint 6960 | -5/Garrison | Discovered new exit (range 11) 6965 | -5/Garrison | Lost 3 allies 6970 | -5/Garrison | Triggered checkpoint 6973 | -5/Garrison | Garrison Relay disabled 7011 | -5/Garrison | Discovered new exit (range 12) 7012 | -5/Garrison | Triggered checkpoint 7060 | -5/Garrison | Triggered checkpoint 7071 | -5/Garrison | Garrison Relay disabled 7091 | -5/Garrison | Lost 4 parts (3n1u) 7095 | -5/Garrison | Discovered new exit (range 10) 7105 | -5/Garrison | Entered Factory 7240 | -5/Factory | Fabricated Imp. Surge Thruster (x2) 7297 | -5/Factory | Lost 6 parts (2p1n2u1w) 7354 | -5/Factory | Build established: Scavenger-Sprinter 7407 | -5/Factory | Discovered new exit (range 5) 7408 | -5/Factory | Identified exit to Factory 7459 | -5/Factory | Repaired Cesium-ion Thruster+ 7461 | -5/Factory | Spotted B-75 Beast 7536 | -5/Factory | Repaired VTOL Module+ 7557 | -5/Factory | Discovered exit to Factory (range 13) 7632 | -5/Factory | Repaired Cesium-ion Thruster+ 7798 | -5/Factory | Cargo convoy interrupted 7856 | -5/Factory | Found Exp. Signal Interpreter 7907 | -5/Factory | Repaired Lgt. Nuclear Core+ 7928 | -5/Factory | Identified exit to Garrison 7938 | -5/Factory | Entered Garrison 7938 | -5/Garrison | Accompanied by 2 allies 7942 | -5/Garrison | Triggered checkpoint 7965 | -5/Garrison | Garrison Relay disabled 7966 | -5/Garrison | Triggered checkpoint 7968 | -5/Garrison | Lost 3 allies 7993 | -5/Garrison | Found embedded Infiltrators 8010 | -5/Garrison | Learned Factory security intel 8085 | -5/Garrison | Triggered checkpoint 8102 | -5/Garrison | Triggered checkpoint 8107 | -5/Garrison | Triggered checkpoint 8127 | -5/Garrison | Core integrity fell below 50% 8132 | -5/Garrison | Triggered checkpoint 8158 | -5/Garrison | Destroyed 15 combat bots 8189 | -5/Garrison | Lost 7 allies 8203 | -5/Garrison | Lost 12 parts (2p8n2u) 8214 | -5/Garrison | Discovered exit to Factory (range 13) 8224 | -5/Garrison | Expanded RIF knowledge: Watcher Feeds 8231 | -5/Garrison | Garrison Relay disabled 8283 | -5/Garrison | Spotted Executioner 8283 | -5/Garrison | Spotted Executioner 8289 | -5/Garrison | Discovered exit to Factory (range 5) 8318 | -5/Garrison | Garrison Relay disabled 8349 | -5/Garrison | Spotted B-75 Beast 8400 | -5/Garrison | Found Relay Coupler [Proto] 8402 | -5/Garrison | Found Relay Coupler [Proto] 8431 | -5/Garrison | Assimilated Executioner with formatsys_high 8442 | -5/Garrison | Rewired Striker 8447 | -5/Garrison | Destroyed Executioner 8451 | -5/Garrison | Found Prototype Device 8451 | -5/Garrison | Identified Adv. Kinecellerator 8458 | -5/Garrison | Found Prototype Processor 8458 | -5/Garrison | Identified Exp. Core Analyzer 8461 | -5/Garrison | Found Prototype Processor 8461 | -5/Garrison | Identified Exp. Targeting Computer 8467 | -5/Garrison | Rewired Striker 8475 | -5/Garrison | Garrison Relay disabled 8476 | -5/Garrison | Triggered checkpoint 8480 | -5/Garrison | Garrison Relay disabled 8531 | -5/Garrison | Entered Factory 8531 | -4/Factory | Accompanied by 4 allies 8531 | -4/Factory | Evolved 2 slots: Utility x2 8561 | -4/Factory | Allied Derelicts emerged from ambush trap array 8638 | -4/Factory | Discovered new exit (range 6) 8639 | -4/Factory | Identified exit to Research 8717 | -4/Factory | Unchained authorized (QV-33N) 8781 | -4/Factory | First assault squad dispatched 8974 | -4/Factory | Lost 5 allies 9066 | -4/Factory | Identified exit to Garrison 9073 | -4/Factory | Sucked down chute 9073 | -4/Factory | Entered Waste 9081 | -4/Waste | Spotted C-40 Crusher 9081 | -4/Waste | Spotted C-40 Crusher 9083 | -4/Waste | Spotted C-40 Crusher 9083 | -4/Waste | Spotted C-40 Crusher 9084 | -4/Waste | Spotted C-40 Crusher 9084 | -4/Waste | Spotted C-40 Crusher 9087 | -4/Waste | Discovered new exit (range 10) 9088 | -4/Waste | EMP discharged 9091 | -4/Waste | Entered Factory 9302 | -4/Factory | Unchained authorized (QV-33N) 9326 | -4/Factory | Repaired Mni. Grenade Launcher+ 9352 | -4/Factory | Discovered new exit (range 12) 9393 | -4/Factory | Spotted B-86 Titan 9394 | -4/Factory | Identified exit to Garrison 9394 | -4/Factory | Entered Garrison 9410 | -4/Garrison | Garrison Relay disabled 9422 | -4/Garrison | Triggered checkpoint 9508 | -4/Garrison | Spotted B-86 Titan 9532 | -4/Garrison | Triggered checkpoint 9540 | -4/Garrison | Triggered checkpoint 9546 | -4/Garrison | Destroyed B-86 Titan 9586 | -4/Garrison | Lost 4 allies 9594 | -4/Garrison | Discovered new exit (range 15) 9615 | -4/Garrison | Triggered checkpoint 9616 | -4/Garrison | Spotted B-86 Titan 9668 | -4/Garrison | Discovered new exit (range 35) 9668 | -4/Garrison | Discovered new exit (range 49) 9668 | -4/Garrison | Discovered new exit (range 21) 9684 | -4/Garrison | Expanded RIF knowledge: Threat Obfuscation 9691 | -4/Garrison | Entered Factory 9705 | -4/Factory | Lost 5 parts (1p2n2u) 9791 | -4/Factory | Central database locked down 9795 | -4/Factory | Discovered exit to Research (range 22) 9795 | -4/Factory | Discovered new exit (range 15) 9876 | -4/Factory | Fabricated Exp. Q-thruster (x1) 9941 | -4/Factory | Identified exit to Garrison 9989 | -4/Factory | Fabricated Imp. Surge Thruster (x2) 9992 | -4/Factory | Entered Garrison 9992 | -4/Garrison | Accompanied by 2 allies 9999 | -4/Garrison | Garrison Relay disabled 10008 | -4/Garrison | Triggered checkpoint 10040 | -4/Garrison | Spotted B-86 Titan 10074 | -4/Garrison | Lost 3 allies 10154 | -4/Garrison | Lost 4 parts (2p1n1u) 10182 | -4/Garrison | Expanded RIF knowledge: Coupler Efficiency 10188 | -4/Garrison | Triggered checkpoint 10188 | -4/Garrison | Garrison Relay disabled 10197 | -4/Garrison | Discovered exit to Research (range 10) 10202 | -4/Garrison | Entered Research 10202 | -3/Research | Evolved 2 slots: Utility x2 10208 | -3/Research | Spotted B-86 Titan 10308 | -3/Research | Discovered new exit (range 9) 10310 | -3/Research | Identified exit to Testing 10346 | -3/Research | Found Mni. Smartbomb Launcher 10378 | -3/Research | Spotted B-86 Titan 10432 | -3/Research | Identified exit to Garrison 10463 | -3/Research | Discovered exit to Testing (range 8) 10475 | -3/Research | Entered Garrison 10475 | -3/Garrison | Accompanied by 2 allies 10479 | -3/Garrison | Rescued a captive Derelict 10481 | -3/Garrison | Rescued a captive Derelict 10483 | -3/Garrison | Triggered checkpoint 10514 | -3/Garrison | Garrison Relay disabled 10519 | -3/Garrison | Triggered checkpoint 10539 | -3/Garrison | Lost 3 allies 10548 | -3/Garrison | Garrison Relay disabled 10629 | -3/Garrison | Triggered checkpoint 10632 | -3/Garrison | Triggered checkpoint 10635 | -3/Garrison | Triggered checkpoint 10642 | -3/Garrison | Triggered checkpoint 10664 | -3/Garrison | Discovered exit to Testing (range 66) 10664 | -3/Garrison | Discovered exit to Testing (range 26) 10664 | -3/Garrison | Discovered exit to Testing (range 47) 10687 | -3/Garrison | Lost 4 allies 10689 | -3/Garrison | Learned Testing security intel 10693 | -3/Garrison | Expanded RIF knowledge: Crosswire 10715 | -3/Garrison | Triggered checkpoint 10729 | -3/Garrison | Triggered checkpoint 10729 | -3/Garrison | Found embedded Infiltrators 10735 | -3/Garrison | Garrison Relay disabled 10819 | -3/Garrison | Build established: Botlord-Sprinter 10829 | -3/Garrison | Entered Testing 10829 | -3/Testing | Accompanied by 9 allies 10831 | -3/Testing | Loaded intel: 12 terminal locations 10885 | -3/Testing | Found Prototype Hackware 10885 | -3/Testing | Identified Exp. System Shield 10892 | -3/Testing | Found Prototype Device 10892 | -3/Testing | Identified Exp. Hardlight Generator 10897 | -3/Testing | Imp. System Shield fried by hacking feedback 10897 | -3/Testing | Exp. System Shield fried by hacking feedback 10934 | -3/Testing | Spotted Striker 10934 | -3/Testing | Spotted Striker 10935 | -3/Testing | Identified exit to Garrison 10947 | -3/Testing | Found Prototype Device 10947 | -3/Testing | Identified 2N-1CE's Frost Array 10979 | -3/Testing | Entered Garrison 10979 | -3/Garrison | Accompanied by 4 allies 11005 | -3/Garrison | Garrison Relay disabled 11015 | -3/Garrison | Triggered checkpoint 11106 | -3/Garrison | Lost 4 allies 11187 | -3/Garrison | Triggered checkpoint 11189 | -3/Garrison | Triggered checkpoint 11251 | -3/Garrison | Triggered checkpoint 11253 | -3/Garrison | Triggered checkpoint 11283 | -3/Garrison | Discovered new exit (range 14) 11318 | -3/Garrison | Garrison Relay disabled 11333 | -3/Garrison | Triggered checkpoint 11343 | -3/Garrison | Garrison Relay disabled 11361 | -3/Garrison | Found Relay Coupler [Proto] 11363 | -3/Garrison | Found Relay Coupler [Proto] 11364 | -3/Garrison | Found Relay Coupler [Proto] 11378 | -3/Garrison | Discovered new exit (range 10) 11400 | -3/Garrison | Discovered new exit (range 12) 11406 | -3/Garrison | Rescued a captive Derelict 11406 | -3/Garrison | Garrison Relay disabled 11413 | -3/Garrison | Expanded RIF knowledge: Robot Detection 11468 | -3/Garrison | Build established: Commander-Sprinter 11628 | -3/Garrison | Entered Research 11628 | -2/Research | Accompanied by 28 allies 11628 | -2/Research | Evolved 2 slots: Utility x2 11729 | -2/Research | P-80 Master assimilated allied Assassin 8e 11764 | -2/Research | Lost 4 allies 11881 | -2/Research | Lost 5 allies 11963 | -2/Research | Spotted B-90 Cyclops 11985 | -2/Research | Allies destroyed B-90 Cyclops 12023 | -2/Research | Identified exit to Garrison 12029 | -2/Research | Garrison activated, responded to threat 12066 | -2/Research | Lost 5 parts (1p2n2u) 12095 | -2/Research | Entered Garrison 12095 | -2/Garrison | Accompanied by 8 allies 12099 | -2/Garrison | Expanded RIF knowledge: Autoassimilate 12108 | -2/Garrison | Garrison Relay disabled 12119 | -2/Garrison | Triggered checkpoint 12135 | -2/Garrison | Spotted B-90 Cyclops 12141 | -2/Garrison | Triggered checkpoint 12156 | -2/Garrison | Lost 8 allies 12158 | -2/Garrison | Discovered new exit (range 5) 12225 | -2/Garrison | Entered Research 12225 | -2/Research | Accompanied by 7 allies 12231 | -2/Research | Discovered new exit (range 9) 12371 | -2/Research | Identified exit to Garrison 12429 | -2/Research | Entered Garrison 12436 | -2/Garrison | Triggered checkpoint 12447 | -2/Garrison | Garrison Relay disabled 12572 | -2/Garrison | Spotted B-90 Cyclops 12573 | -2/Garrison | Triggered checkpoint 12575 | -2/Garrison | Triggered checkpoint 12581 | -2/Garrison | Triggered checkpoint 12605 | -2/Garrison | Garrison Relay disabled 12614 | -2/Garrison | Discovered new exit (range 22) 12618 | -2/Garrison | Expanded RIF knowledge: Alert ID Control 12629 | -2/Garrison | QS Assembler disabled 12633 | -2/Garrison | Lost 8 allies 12670 | -2/Garrison | Entered Access 12670 | -1/Access | Accompanied by 1 ally 12670 | -1/Access | Evolved 2 slots: Utility x2 12721 | -1/Access | Build established: Botlord-Sprinter 12727 | -1/Access | Identified exit to Command 12760 | -1/Access | Spotted B-99 Colossus 12802 | -1/Access | Spotted B-99 Colossus 12805 | -1/Access | Lost 3 allies 12904 | -1/Access | Entered Command 12932 | -1/Command | Spotted B-99 Colossus 13026 | -1/Command | Spotted Alpha 7 13026 | -1/Command | Spotted Alpha 7 13026 | -1/Command | Spotted Striker 13026 | -1/Command | Spotted Striker 13026 | -1/Command | Spotted Executioner 13026 | -1/Command | Spotted Executioner 13026 | -1/Command | Spotted Executioner 13026 | -1/Command | Spotted Executioner 13027 | -1/Command | Autoassimilated Striker with RIF 13027 | -1/Command | Autoassimilated Striker with RIF 13027 | -1/Command | Spotted B-99 Colossus 13027 | -1/Command | Spotted B-99 Colossus 13033 | -1/Command | Assimilated Alpha 7 with formatsys_high 13041 | -1/Command | Allies destroyed Executioner 13051 | -1/Command | Destroyed Alpha 7 13055 | -1/Command | Discovered new exit (range 8) 13057 | *** | Escaped! Last Messages --------------- 13055_ Wall collapses. 13055_ Triggered Stasis Trap. 13055_ A bubble of rippling energy engulfs the area. 13055_ Stasis field depleted. 13055_ Alpha 7 knocked back. 13055_ Slug penetrates Alpha 7. 13055_ Slug penetrates Wall. 13055_ Slug penetrates Alpha 7. 13055_ Triggered Stasis Trap. 13055_ A bubble of rippling energy engulfs the area. 13055_ Stasis field depleted. 13055_ The Access Shell folds into the floor. 13055_ EXIT=FOUND 13056_ Triggered Stasis Trap. 13056_ A bubble of rippling energy engulfs the area. 13056_ Stasis field depleted. 13056_ Alpha 7 destroyed. Map ----- +----------------------------------------------------+ | +? #??????????????????????????????????????? | | ?? ???????????????????????????????????????? | | #? ???????????????????????????????????????? | | """" #? ???????????????????????????????????????? | | """" #? ???????????????????????????????????????? | | """" #? ???????????????????????????????????????? | | """" #? ???????????????????????????????????????? | | #? ???????????????????????????????????????? | | +?Y???????????????????????????????????????? | | ########? ???????????????????????????????????????? | | # #?????????????????????????????????????????? | | # #?????????????????????????????????????????? | | # #?????????????????????????????????????????? | | # #?????????????????????????????????????????? | | # +?????????????????????????????????????????? | | # #?????????????????????????????????????????? | | + #?????????????????????????????????????????? | | # #?????????????????????????????????????????? | | # #?????????????????????????????????????????? | | # #??????????##############?????????????????? | | # #??####???## #?????????????????? | | # ####;;#####; #?????????????????? | | # ;#%%*!%==%!#* ^^ ^ ^^ #?????????????????? | | ####/##;%^^^^^^^^BB! ^ ^ #?????????????????? | | p !=%%^^^^^^^BB[ #?????????????????? | | ! !;^!!^^^^^^^ ^ "@ #?????????????????? | | +^^^^^^^[^^! "" #?????????????????? | | +!^^^^^^^^!=*^ ^ #?????????????????? | | ####+####^ ]= ^ ^BB^ ^ #?????????????????? | | ????????##*/!%#!#%=BB ^^^ ^^ #?????????????????? | | ?????????####!##### #?????????????????? | | ????????????###???# #?????????????????? | | ??????????????????##############?????????????????? | | ?????????????????????????????????????????????????? | | ?????????????????????????????????????????????????? | | ?????????????????????????????????????????????????? | | ?????????????????????????????????????????????????? | | ?????????????????????????????????????????????????? | | ?????????????????????????????????????????????????? | | ?????????????????????????????????????????????????? | | ?????????????????????????????????????????????????? | | ?????????????????????????????????????????????????? | | ?????????????????????????????????????????????????? | | ?????????????????????????????????????????????????? | | ?????????????????????????????????????????????????? | | ?????????????????????????????????????????????????? | | ?????????????????????????????????????????????????? | | | | | | | +----------------------------------------------------+ Best States ------------- Heat Dissipation 152 Coolant Potential 50 Energy Generation 39 Energy Capacity 400 Matter Stores 300 Matter Capacity 300 Sight Range 23 Robot Scan Range 18 Terrain Scan Density 10 Additional Mass Support 25 Armor Coverage 300 Resistance: EM 15 Core Shielding 30 Propulsion Shielding 66 Utility Shielding 66 Weapon Shielding 66 Melee Speed Boost 30 Evasion (%) 67 Targeting Accuracy 11 Core Analysis 9 Offensive Hacking 28 Defensive Hacking 28 Relay Coupler Types 9 Relay Coupler Value 222 Authchip Count 3 Item Schematics ----------------- Surge Thruster | -8/Materials | Hacked Cryofiber Web | -8/Materials | Hacked Cesium-ion Thruster | -8/Materials | Scanalyzed Imp. Utility Shielding | -7/Factory | Scanalyzed Target Analyzer | -7/Factory | Extracted Flak Cannon | -7/Factory | Extracted Gatling Laser | -7/Factory | Extracted Spear | -7/Factory | Extracted Hpw. Tractor Beam | -7/Factory | Extracted ECM Suite | -7/Factory | Extracted Power Shielding | -7/Factory | Extracted Imp. Medium Armor Plating | -7/Factory | Extracted Hacking Suite | -7/Factory | Extracted Imp. Cooling System | -7/Factory | Extracted Lrg. Storage Unit | -7/Factory | Extracted Hvy. Missile Launcher | -7/Factory | Extracted Hardlight Generator | -7/Factory | Extracted Shock Rifle | -7/Factory | Extracted Ion Cannon | -7/Factory | Extracted Maul | -7/Factory | Extracted System Restoration Module | -7/Factory | Extracted Imp. Heat Sink | -7/Factory | Extracted Hvy. EM Shotgun | -7/Factory | Extracted Linear Gravjet | -5/Factory | Extracted Imp. Trap Scanner | -5/Factory | Extracted Adv. Cooling System | -5/Factory | Extracted Imp. Particle Charger | -5/Factory | Extracted Nuclear Pulse Thruster | -5/Factory | Extracted Wheel | -5/Factory | Extracted Huge Storage Unit | -5/Factory | Extracted Com. Matter Pod | -5/Factory | Extracted Adv. Heat Sink | -5/Factory | Extracted Flexi-carbon Leg | -5/Factory | Extracted Hvy. Phase Cannon | -5/Factory | Extracted Jamming Amplifier | -5/Factory | Extracted Enh. Gauss Cannon | -5/Factory | Extracted Remote Datajack | -5/Factory | Extracted Hpw. Field Laser | -5/Factory | Extracted Launcher Loader | -5/Factory | Extracted Lrn. Tractor Beam | -5/Factory | Extracted Reaction Control System | -5/Factory | Extracted Imp. Field Recycling Unit | -5/Factory | Extracted Salvage Targeting Computer | -5/Factory | Extracted Hcp. Storage Unit | -5/Factory | Extracted Actuator Array | -5/Factory | Extracted Imp. Plasma Cutter | -5/Factory | Extracted Recoil Stabilizer | -5/Factory | Extracted Drone Bay | -5/Factory | Extracted Matter Compressor | -5/Factory | Extracted Mni. Drone Bay | -5/Factory | Extracted Imp. Surge Thruster | -5/Factory | Hacked Imp. Weapon Cycler | -5/Factory | Extracted Arm. Medium Treads | -5/Factory | Extracted Imp. Thermal Shield | -5/Factory | Extracted Adv. Hacking Suite | -5/Factory | Hacked Exp. Q-thruster | -4/Factory | Downloaded Adv. Melee Analysis Suite | -4/Factory | Extracted Magnetic Acceleration Cannon | -4/Factory | Extracted Imp. Fusion Compressor | -4/Factory | Extracted Lgt. Regenerative Plating | -3/Testing | Hacked Med. Regenerative Plating | -3/Testing | Hacked Adv. Variable Charge Gun | -3/Garrison | Archive Robot Schematics ------------------ H-55 Commando | -7/Factory | Downloaded L-31 Rogue | -7/Factory | Hacked O-24 Administrator | -7/Factory | Hacked E-15 Imp | -5/Factory | Hacked T-07 Excavator | -3/Garrison | Archive Fabricated ------------ Cesium-ion Thruster | x2 | -6/Factory O-24 Administrator | x1 | -5/Factory | Authchip Imp. Surge Thruster | x2 | -5/Factory | Authchip Exp. Q-thruster | x1 | -4/Factory | Authchip Imp. Surge Thruster | x2 | -4/Factory Repaired ---------- VTOL Module | 4% | -10/Materials VTOL Module | 32% | -10/Materials Battle Rifle | 34% | -8/Materials VTOL Module | 8% | -8/Materials Lgt. Deuterium Engine | 32% | -7/Factory VTOL Module | 28% | -5/Factory Nuclear Pulse Array | 24% | -5/Factory Cesium-ion Thruster | 28% | -5/Factory VTOL Module | 24% | -5/Factory Cesium-ion Thruster | 44% | -5/Factory Lgt. Nuclear Core | 30% | -5/Factory Mni. Grenade Launcher | 6% | -4/Factory Studied --------- VTOL Module | -8/Materials | Hacked Lgt. Ion Engine | -8/Materials | Hacked Cesium-ion Thruster | -7/Factory | Hacked Remote Datajack | -7/Factory | Hacked Lgt. Nuclear Core | -7/Factory | Hacked Mni. Grenade Launcher | -7/Factory | Hacked Mic. Fission Core | -4/Factory | Hacked Alien Tech Used ----------------- None Achievements -------------- Powerful Protocols RIFT Wizard Challenges ------------ None Game ------ Seed FieldScatterDoomcannon Manual? 0 Play Time 05:54:47 Cumulative 629.6 hours Start 2025.11.08 @ 20:41:26 End 2025.11.09 @ 14:55:58 Sessions 3 Manual Loads 0 Difficulty Rogue Special Mode None Game No. 259 Rogue 259 Adventurer 0 Explorer 0 Win Type 0 Total 48 Types 21/4/8/2/6/1/0/3/0/3 Lore% 96 Gallery% 88 Achievement% 77 Wizard Run 0 Options --------- Layout 1 ASCII 0 Keyboard 0 Movement Numpad Keybinds 0 Fullscreen 1 Font 24/Smallcaps Map View 50x35 Zoom Use 0% Tactical HUD 1 Map Filters NONE Filters NONE Steam 1 RUN: ac98c73f-b82b-45c5-8861-584000b1cac3